{"text_format":"1","workbook":"xlsx","n_sheets":8,"sheets":["Instructions","Outstanding Errors and Warnings","Section A. Local CSBG Expen","Section B. Local Agency Capacit","Section C. Local CSBG Resources","Identification","XML Export Map","Lookups"],"not_rendered":{"charts":0,"images":1,"macros":1,"external_links":0,"defined_names":392,"comments":3,"pivot_tables":0},"unopened":[],"bounds":{"document_bytes":16777216,"sheet_cells":100000,"rows_first":2000,"rows_last":500,"rows_between":2000,"halvings":0,"cell_chars":16384,"cell_head_chars":4096},"cells_cut":0,"cells_raw":0,"read":"whole","date_system":"1900"}

{"sheet":"Instructions","index":0,"n_rows":40,"n_cols":3,"rows_kept":40,"cut":false,"hidden":false,"merged":[[4,1,4,3],[9,1,9,3],[37,1,37,3],[39,1,39,3],[35,1,35,3],[18,1,18,3],[33,1,33,3],[20,1,20,3],[24,1,24,2],[31,1,31,3],[22,1,22,3],[29,1,29,3],[6,1,6,3],[11,1,11,3]]}
[]
[null,null,"Instructional Notes"]
[null,null,"Module 2 SmartForm"]
[]
[null,"SmartForm Purpose"]
[]
[null,"The purpose of the Module 2 SmartForm is to:"]
[null,null,"1. Collect data required for reporting Module 2 of the CSBG Annual Report.\n2. Alert CSBG Eligible Entities of possible data quality issues during the data collection process.\n3. Provide CSBG Eligible Entities an explanation of possible data quality issues so they can determine whether the data needs to be modified.\n4. Provide State Offices a guided review of CSBG Eligible Entity reported data prior to finalizing and submitting data in OLDC."]
[]
[null,"Components of the Smart Form"]
[]
[null,"There are 5 tabs in the Module 2 SmartForm:"]
[null,null,"Module 2 Instructions - For more detailed guidance on Module 2 of the CSBG Annual Report, review the CSBG Annual Report, Module 2 Instruction Manual."]
[null,null,"Section A. Local CSBG Expen - This tab should be used by CSBG Eligible Entities to enter data on Module 2, Section A of the CSBG Annual Report"]
[null,null,"Section B. Local Agency Cap - This tab should be used by CSBG Eligible Entities to enter data on Module 2, Section B of the CSBG Annual Report"]
[null,null,"Section C Local CSBG Resources - This tab should be used by CSBG Eligible Entities to enter data on Module 2, Section C of the CSBG Annual Report"]
[null,null,"Outstanding Errors and Warnings Tab: This tab provides a summary list of data fields in Sections A, B, and C with possible data quality issues, as well as a brief description of the issues."]
[]
[null,"Error and Warning Messages - Overview"]
[]
[null,"An Error is activated when the user has entered data that is considered invalid by the SmartForm (for example, a user reports they served a negative number of participants).  A Warning is activated when data is considered valid, but should be reviewed by the user to confirm its accuracy (for example, a user reports that none of the participants served achieved an outcome).\n\nPlease note: a Warning message does not necessarily mean the data is incorrect.  Review the reason for the warning and determine whether the data is correct or requires revision.  "]
[]
[null,"Error and Warning Messages - Example"]
[]
[null,"The error message will describe the error and/or warning(s) that were activated.  An example of a message is included below:"]
[]
[]
[]
[]
[null,"Color Coded Fields"]
[]
[null,"RED: The user has activated an error message.                                                                                                     YELLOW: The user has activated a warning message.                                                                                                                    \n\nThe highlighting serves as a reminder to the CSBG Eligible Entity of the possible data quality issue.  Once data is entered that resolves the error and/or warning message(s), the red and/or yellow highlighting will disappear."]
[]
[null,"Current Year and Prior Year Data"]
[]
[null,"Each tab for Sections A, B,  & C are prepopulated with prior year data. This should be used when reviewing current year data to identify discrepancies. The data comes from the FY18 Annual Report. In future years all fields will be populated. Note: the user cannot edit prior year data.\n\n"]
[]
[null,"Outstanding Errors and Warnings Tab"]
[]
[null,"The SmartForm's Outstanding Errors and Warnings tab lists the location and description of all Errors and Warnings activated.  The Outstanding Warnings tab updates every time the user saves the SmartForm.  Therefore, it is critical that users save the SmartForm prior to reviewing the Outstanding Warnings tab."]

{"sheet":"Outstanding Errors and Warnings","index":1,"n_rows":19,"n_cols":6,"rows_kept":19,"cut":false,"hidden":false,"merged":[[3,1,3,4]]}
[]
[null,null,null,null,"Double click in any row to go to the cell that generated the error or warning."]
[]
[null,"Module 2 Errors and Warnings"]
[null,"Tab","Data Field","Severity","Message Description","A3_Admin"]
[null,"Section A. Local CSBG Expen","A.2i. CSBG Expenditures Domains - Agency Capacity Building","Warning","The value entered for the current year is greater than $0.00, while last year, the value reported here was $0.00.","M2A2iCapacity"]
[null,"Section B. Local Agency Capacit","B.4a. Staff with Certifications - ROMA Trainers","Warning","The value entered for the current year is greater than 0, while last year, the value reported here was 0.","M2B4aROMATrainers"]
[null,"Section C. Local CSBG Resources","C.3a. Federal Resources Allocated - Weatherization (DOE)","Warning","The value entered for the current year is greater than $0.00, while last year, the value reported here was $0.00.","M2C3aDOEWx"]
[null,"Section C. Local CSBG Resources","C.3b.1. Federal Resources Allocated - HHS - LIHEAP Fuel Assistance","Warning","The value entered for the current year is either more than double or less than half of the value reported last year.","M2C3b1LIHEAPAssist"]
[null,"Section C. Local CSBG Resources","C.3b.2. Federal Resources Allocated - HHS - LIHEAP Weatherization","Warning","The value entered for the current year is greater than $0.00, while last year, the value reported here was $0.00.","M2C3b2LIHEAPWx"]
[null,"Section C. Local CSBG Resources","C.3b.6. Federal Resources Allocated - HHS - SSBG","Warning","The value entered for the current year is either more than double or less than half of the value reported last year.","M2C3b6SSBG"]
[null,"Section C. Local CSBG Resources","C.3c.3. Federal Resources Allocated - USDA - Other Food Programs","Warning","The value entered for the current year is either more than double or less than half of the value reported last year.","M2C3c3USDAFood"]
[null,"Section C. Local CSBG Resources","C.3d.1. Federal Resources Allocated - HUD - CDBG","Warning","The value entered for the current year is greater than $0.00, while last year, the value reported here was $0.00.","M2C3d1CDBG"]
[null,"Section C. Local CSBG Resources","C.3d.4. Federal Resources Allocated - HUD - HOME TBRA","Warning","The value entered for the current year is greater than $0.00, while last year, the value reported here was $0.00.","M2C3d4HOMETBRA"]
[null,"Section C. Local CSBG Resources","C.3d.6. Federal Resources Allocated - HUD - ESG","Warning","The value entered for the current year is either more than double or less than half of the value reported last year.","M2C3d6ESG"]
[null,"Section C. Local CSBG Resources","C.3k. Federal Resources Allocated - Dept of Treasury","Warning","The value entered for the current year is greater than $0.00, while last year, the value reported here was $0.00.","M2C3kTreasury"]
[null,"Section C. Local CSBG Resources","C.4i. State Resources Allocated - Senior Programs","Warning","The value entered for the current year is greater than $0.00, while last year, the value reported here was $0.00.","M2C4iStateSenior"]
[null,"Section C. Local CSBG Resources","C.5a. Local Resources Allocated - Unrestricted Funds","Warning","The value entered for the current year is greater than $0.00, while last year, the value reported here was $0.00.","M2C5aLocalUnrestricted"]
[null,"Section C. Local CSBG Resources","M2C3liOtherFedDollar. Other HHS Resources - Specify 1","Warning","If you specify other HHS resources, you must enter a description, CFDA #, and $ value.","M2C3liOtherFedCFDA"]

{"sheet":"Section A. Local CSBG Expen","index":2,"n_rows":43,"n_cols":10,"rows_kept":43,"cut":false,"hidden":false,"merged":[[5,8,5,9],[2,2,2,3],[3,2,3,3],[4,8,4,9],[1,8,1,9],[2,8,2,9],[3,8,3,9],[1,2,1,3],[42,2,42,3],[36,2,36,3],[40,2,40,3],[41,2,41,3],[7,2,7,3],[37,2,39,3],[35,2,35,3],[14,2,14,3],[42,8,42,9],[41,8,41,9],[7,8,7,9],[14,8,14,9],[35,8,35,9],[36,8,36,9],[37,8,39,9],[40,8,40,9]]}
[]
[null,"FY 20","Module 2, Section A: Local Agency CSBG Expenditures - Data Entry Form",null,null,null,null,"FY 19","Module 2, Section A: Local Agency CSBG Expenditures - Data Entry Form"]
[null,null,"Name of CSBG Eligible Entity (enter below): ",null,null,null,null,null,"State Name:"]
[null,null,"Southeastern Utah Association of Local Governments"]
[null,null,"State Name (enter below):","DUNS",null,null,null,null,"Name of CSBG Eligible Entity:"]
[null,null,"Utah","097758627"]
[]
[null,null,"A.1  CSBG Eligible Entity Reporting Period: ",null,null,null,null,null,"A.1  CSBG Eligible Entity Reporting Period: "]
[]
[null,null,null,{"$f":"IF(Lookups!C15<>1,\"FATAL ERROR: Select One Checkbox\",\" \")","v":" "}]
[null,null,"A.1a.  July 1-June 30",null,null,null,null,null,"A.1a.  July 1-June 30"]
[null,null,"A.1b.  October 1-September 30",null,null,null,null,null,"A.1b.  October 1-September 30"]
[null,null,"A.1c.  January 1-December 31",null,null,null,null,null,"A.1c.  January 1-December 31"]
[]
[null,null,"A.2  CSBG Expenditures: \n",null,null,null,null,null,"A.2  CSBG Expenditures: \n"]
[]
[null,null,"CSBG Expenditures Domains","CSBG Funds",null,null,null,null,"CSBG Expenditures Domains","CSBG Funds"]
[null,null,"A.2a.  Employment",15825,null,null,null,null,"A.2a.  Employment",12473]
[null,null,"A.2b.  Education and Cognitive Development",null,null,null,null,null,"A.2b.  Education and Cognitive Development"]
[null,null,"A.2c.  Income, Infrastructure, and Asset Building",null,null,null,null,null,"A.2c.  Income, Infrastructure, and Asset Building"]
[null,null,"A.2d.  Housing",2670,null,null,null,null,"A.2d.  Housing",2464]
[null,null,"A.2e.  Health and Social/Behavioral Development (includes nutrition)",94890,null,null,null,null,"A.2e.  Health and Social/Behavioral Development (includes nutrition)",91147]
[null,null,"A.2f.  Civic Engagement and Community Involvement",null,null,null,null,null,"A.2f.  Civic Engagement and Community Involvement"]
[null,null,"A.2g.  Services Supporting Multiple Domains  ",null,null,null,null,null,"A.2g.  Services Supporting Multiple Domains  "]
[null,null,"A.2h.  Linkages (e.g. partnerships that support multiple domains)",null,null,null,null,null,"A.2h.  Linkages (e.g. partnerships that support multiple domains)"]
[null,null,"A.2i.  Agency Capacity Building (detailed below in Table A.4)",10970,null,null,null,null,"A.2i.  Agency Capacity Building (detailed below in Table A.4)"]
[null,null,"A.2j.  Other (e.g. emergency management/disaster relief)",null,null,null,null,null,"A.2j.  Other (e.g. emergency management/disaster relief)"]
[null,null,"A.2k.   Total CSBG Expenditures (auto calculated)    ",{"$f":"SUM(D18:D27)","v":124355},null,null,null,null,"A.2k.   Total CSBG Expenditures (auto calculated)    ",{"$f":"SUM(J18:J27)","v":106084}]
[]
[null,null,"A.3  Of the CSBG funds reported above, report the total amount used for Administration*.",14740,null,null,null,null,"A.3  Of the CSBG funds reported above, report the total amount used for Administration*.",13638]
[null,null,"*for more information on what qualifies as Administration, refer to IM37 ",null,null,null,null,null,"*for more information on what qualifies as Administration, refer to IM37 "]
[]
[]
[null,null,"A.4  Details on Agency Capacity Building Activities Funded by CSBG:",null,null,null,null,null,"A.4  Details on Agency Capacity Building Activities Funded by CSBG:"]
[]
[null,null,"A.4.1.   Please identify which activities were funded by CSBG under Agency Capacity in Table B. Please check all that apply.",null,null,null,null,null,"A.4.1.   Please identify which activities were funded by CSBG under Agency Capacity in Table B. Please check all that apply."]
[null,null,{"$f":"IF(AND(A41_Activities=0,D26<>0),\" ERROR: You must select at least 1 checkbox since you reported funds in A.2i\",\" \")","v":" "}]
[]
[]
[]
[null,null,"A.4.1.oth.  Please specify Other Activities funded by CSBG under Agency Capacity:",null,null,null,null,null,"A.4.1.oth.  Please specify Other Activities funded by CSBG under Agency Capacity:"]
[null,null," Staff meetings, board meetings, Risk assessment, and succession planning. "]
[null,null,{"$f":"IF(AND(Lookups!C24,C42=\"\"),\"ERROR: You must specify A.4.1.oth, 'Other Activities funded by CSBG under Agency Capacity' (above). You selected 'Other' in the checkbox in item A.4.1.\",\" \")","v":" "}]

{"sheet":"Section B. Local Agency Capacit","index":3,"n_rows":58,"n_cols":10,"rows_kept":58,"cut":false,"hidden":false,"merged":[[55,2,55,3],[3,8,3,9],[37,2,37,3],[39,2,39,3],[1,2,1,3],[1,8,1,9],[14,2,14,3],[18,2,18,3],[38,2,38,3],[38,8,39,9],[2,8,2,9]]}
[]
[null,"FY 20"," Module 2, Section B: Local Agency Capacity Building - Data Entry Form",null,null,null,null,"FY 19"," Module 2, Section B: Local Agency Capacity Building - Data Entry Form"]
[null,null,{"$f":"\"Name of CSBG Eligible Entity: \" & IF(M2AgencyName<>\"\",M2AgencyName,\" \")","v":"Name of CSBG Eligible Entity: Southeastern Utah Association of Local Governments"},"DUNS",null,null,null,null,"Name of CSBG Eligible Entity"]
[null,null,{"$f":"\"State Name: \" & IF(M2StateName<>\"\",M2StateName,\" \")","v":"State Name: Utah"},{"$f":"IF(M2DUNS<>\"\",M2DUNS,\" \")","v":"097758627"}]
[null,null,"^CODED TO PREPOULATE..DO NOT TOUCH "]
[null,null,"B.1. CSBG Eligibly Entity Reporting Period: ",null,null,null,null,null,"B.1. CSBG Eligibly Entity Reporting Period: "]
[null,null,"B.1.  CSBG Eligible Entity Reporting Period","\"X\"",null,null,null,null,"B.1.  CSBG Eligible Entity Reporting Period","\"X\""]
[null,null,"B.1a. July 1-June 30",null,false,null,null,null,"July 1-June 30"]
[null,null,"B.1b. October 1-September 30",null,true,null,null,null,"October 1-September 30"]
[null,null,"B.1c. January 1-December 31",null,false,null,null,null,"January 1-December 31"]
[]
[null,null,"B.2 Hours of Agency Capacity Building (e.g. training, planning, assessment):","Hours",null,null,null,null,"B.2 Hours of Agency Capacity Building (e.g. training, planning, assessment):","Hours"]
[null,null,"    B.2a. Hours of Board Members in capacity building activities",18,null,null,null,null,"     a. Hours of Board Members in Trainings",16]
[null,null,"    B.2b. Hours of Agency Staff in capacity building activities",336,null,null,null,null,"     b. Hours of Agency Staff in Trainings",317]
[]
[null,null,"B.3. Volunteer Hours of Agency Capacity Building (e.g. program support, service delivery, fundraising):"," Hours",null,null,null,null,"B.3. Volunteer Hours of Agency Capacity Building (e.g. program support, service delivery, fundraising):","Hours"]
[null,null,"B.3a. Total number of volunteer hours donated to the agency",12198,null,null,null,null,"B.3a. Number of Voluntee hours donated to the agency",13129]
[null,null,"B.3a.1. Of the above, the total number of volunteer hours donated by individuals with low-incomes",6175,null,null,null,null,"B.3a.1. Total number of volunteer hours donated by low-income individuals to community action",6721]
[]
[null,null,"B.4. The number of staff who hold certifications that increase agency capacity to achieve family and community outcomes, as measured by one or more of the following: ","Number",null,null,null,null,"B.4. The number of staff who hold certifications that increase agency capacity to achieve family and community outcomes, as measured by one or more of the following: ","Number"]
[null,null,"B.4a. Number of Nationally Certified ROMA Trainers",1,null,null,null,null,"B.4a. Number of Nationally Certified ROMA Trainers"]
[null,null,"B.4b. Number of Nationally Certified ROMA Implementers",null,null,null,null,null,"B.4b. Number of Nationally Certified ROMA Implementers"]
[null,null,"B.4c. Number of Certified Community Action Professionals (CCAP)",6,null,null,null,null,"B.4c. Number of Certified Community Action Professionals (CCAP)",6]
[null,null,"B.4d. Number of Staff with a child development certification",null,null,null,null,null,"B.4d. Number of Staff with a child development certification"]
[null,null,"B.4e. Number of Staff with a family development certification",15,null,null,null,null,"B.4e. Number of Staff with a family development certification",14]
[null,null,"B.4f. Number of Pathways Reviewers ",null,null,null,null,null,"B.4f. Number of Pathways Reviewers "]
[null,null,"B.4g. Number of Staff with Home Energy Professional Certifications",2,null,null,null,null,"B.4g. Number of Staff with Home Energy Professional Certifications",3]
[null,null,"     B.4g.1. Number of Energy Auditors",2,null,null,null,null,"     B.4g.1. Number of Energy Auditors",3]
[null,null,"     B.4g.2. Number of Retrofit Installer Technicians",2,null,null,null,null,"     B.4g.2. Number of Retrofit Installer Technicians",2]
[null,null,"     B.4g.3. Number of Crew Leaders",1,null,null,null,null,"     B.4g.3. Number of Crew Leaders",2]
[null,null,"     B.4g.4. Number of Quality Control Inspectors (QCI)",2,null,null,null,null,"     B.4g.4. Number of Quality Control Inspectors (QCI)",2]
[null,null," B.4h. Number of LEED Risk Certified assessors",null,null,null,null,null," B.4h. Number of LEED Risk Certified assessors"]
[null,null," B.4i. Number of Building Performance Institute (BPI) certified professionals",2,null,null,null,null," B.4i. Number of Building Performance Institute (BPI) certified professionals",2]
[null,null,"B.4j. Number of Classroom Assessment Scoring System (CLASS) certified professionals",null,null,null,null,null,"B.4j. Number of Classroom Assessment Scoring System (CLASS) certified professionals"]
[null,null,"B.4k. Number of Certified Housing Quality Standards (HQS) Inspectors",null,null,null,null,null,"B.4k. Number of Certified Housing Quality Standards (HQS) Inspectors"]
[null,null,"B.4l. Number of American Institute of Certified Planners (AICP)   ",null,null,null,null,null,"B.4l. Number of American Institute of Certified Planners (AICP)   "]
[null,null,"B.4m. Other (Please specify others below):",null,null,null,null,null,"B.4m. Other (Please specify others below):"]
[]
[]
[null,null,{"$f":"IF(AND(D37<>0,C39=\"\"),\"ERROR: You must specify the Other certifications held by staff members \",\" \")","v":" "}]
[null,null,"                          ",null,null,null,null,null,"                          "]
[null,null,"B.5. Number of organizations, both public and private, that the CSBG Eligible Entity actively works with to expand resources and opportunities in order to achieve family and community outcomes:","Unduplicated Number of Organizations",null,null,null,null,"B.5. Number of organizations, both public and private, that the CSBG Eligible Entity actively works with to expand resources and opportunities in order to achieve family and community outcomes:","Unduplicated Number of Organizations"]
[null,null,"B.5a. Non-Profit",13,null,null,null,null,"B.5a. Non-Profit",13]
[null,null,"B.5b. Faith Based",7,null,null,null,null,"B.5b. Faith Based",7]
[null,null,"B.5c. Local Government",4,null,null,null,null,"B.5c. Local Government",4]
[null,null,"B.5d. State Government",5,{"$f":"IF(OR(M2B5dState=0, M2B5dState=\"\"),1,0)","v":0},null,null,null,"B.5d. State Government",5]
[null,null,"B.5e. Federal Government",2,null,null,null,null,"B.5e. Federal Government",2]
[null,null,"B.5f. For-Profit Business or Corporation",23,null,null,null,null,"B.5f. For-Profit Business or Corporation",22]
[null,null,"B.5g. Consortiums/Collaborations",3,null,null,null,null,"B.5g. Consortiums/Collaborations",2]
[null,null,"B.5h. School Districts",4,null,null,null,null,"B.5h. School Districts",4]
[null,null,"B.5i. Institutions of Post-Secondary Education/Training",1,null,null,null,null,"B.5i. Institutions of Post-Secondary Education/Training",1]
[null,null,"B.5j. Financial/Banking Institutions",5,null,null,null,null,"B.5j. Financial/Banking Institutions",5]
[null,null,"B.5k. Health Service Organizations",4,null,null,null,null,"B.5k. Health Service Organizations",4]
[null,null,"B.5l. Statewide Associations or Collaborations",5,{"$f":"IF(OR(M2B5lStatewide=0,M2B5lStatewide=\"\"),1,0)","v":0},null,null,null,"B.5l. Statewide Associations or Collaborations",5]
[]
[null,null,{"$f":"IF(AND(E46=1,E54=0),\"At a minimum, the state CSBG office should be a partner organization\",IF(AND(E46=0,E54=1),\"At a minimum, the state Community Action Association should be a partner organization\",IF(AND(E46=1,E54=1),\"At a minimum, the state CSBG office and state Community Action Association should be partner organizations\",\"\")))","v":""}]
[]
[null,null,"\n"]

{"sheet":"Section C. Local CSBG Resources","index":4,"n_rows":147,"n_cols":24,"rows_kept":147,"cut":false,"hidden":false,"merged":[[141,2,141,10],[139,16,140,21],[100,18,100,20],[101,18,101,20],[102,18,102,20],[112,16,113,21],[115,15,115,23],[124,16,125,21],[127,15,127,23],[139,3,140,8],[127,2,127,10],[115,2,115,10],[112,3,113,8],[124,3,125,8],[108,5,108,7],[106,5,106,7],[2,15,2,23],[5,15,5,23],[7,15,7,20],[7,21,7,23],[16,15,16,23],[8,21,10,24],[4,15,4,24],[83,15,83,23],[99,18,99,20],[100,5,100,7],[101,5,101,7],[102,5,102,7],[83,2,83,10],[99,5,99,7],[16,2,16,10],[2,2,2,10],[7,8,7,10],[7,2,7,7],[10,8,10,11],[8,8,8,11],[9,8,9,11],[4,6,4,11],[5,6,5,8],[5,2,5,5],[4,2,4,5],[107,5,107,7],[82,2,82,10],[126,2,126,11],[103,5,103,7],[104,5,104,7],[105,5,105,7]]}
[]
[]
[null,"FY 20","Module 2, Section C: Allocated Resources per CSBG Eligible Entity - Data Entry Form",null,null,null,null,null,null,null,null,null,null,null,"FY 19","Module 2, Section C: Allocated Resources per CSBG Eligible Entity - Data Entry Form"]
[]
[null,null,"Name of CSBG Eligble Entity:",null,null,null,{"$f":"IF(M2AgencyName<>\"\",M2AgencyName,\" \")","v":"Southeastern Utah Association of Local Governments"},null,null,null,null,null,null,null,null,"Name of CSBG Eligible Entity:"]
[null,null,"State Name:",null,null,null,{"$f":"IF(M2StateName<>\"\",M2StateName,\" \")","v":"Utah"},null,null,"DUNS:",{"$f":"IF(M2DUNS<>\"\",M2DUNS,\" \")","v":"097758627"}]
[]
[null,null,"C.1. CSBG Eligible Entity Reporting Period",null,null,null,null,null,"\"X\"",null,null,null,null,null,null,"C.1. CSBG Eligible Entity Reporting Period",null,null,null,null,null,"\"X\""]
[null,null,"C.1a. July 1 - June 30",null,null,null,null,null,null,null,null,null,false,null,null,"C.1a. July 1 - June 30"]
[null,null,"C.1b. October 1 - September 30",null,null,null,null,null,null,null,null,null,true,null,null,"C.1b. October 1 - September 30"]
[null,null,"C.1c. January 1 - December 31",null,null,null,null,null,null,null,null,null,false,null,null,"C.1c. January 1 - December 31"]
[]
[]
[null,null,"C.2. Amount of FY 2020 CSBG allocated to reporting entity",null,null,null,null,null,null,"C.2",216854,null,null,null,null,"C.2. Amount of FY 2019 CSBG allocated to reporting entity",null,null,null,null,null,null,"C.2",136379]
[]
[]
[null,null,"C.3. Federal Resources Allocated (Other than CSBG)",null,null,null,null,null,null,null,null,null,null,null,null,"C.3. Federal Resources Allocated (Other than CSBG)"]
[]
[null,null,"C.3a. Weatherization (DOE) (include oil overcharge $$)",null,null,null,null,null,null,"C.3a.",179606,null,null,null,null,"C.3a. Weatherization (DOE) (include oil overcharge $$)",null,null,null,null,null,null,"C.3a."]
[null,null,"C.3b. Health and Human Services (HHS)",null,null,null,null,null,null,null,null,null,null,null,null,"C.3b. Health and Human Services (HHS)"]
[null,null,null,"C.3b.1.",null,"LIHEAP - Fuel Assistance  (include oil overcharge $$)",null,null,null,"C.3b.1.",568878,null,null,null,null,null,"C.3b.1.",null,"LIHEAP - Fuel Assistance  (include oil overcharge $$)",null,null,null,"C.3b.1.",231758]
[null,null,null,"C.3b.2.",null,"LIHEAP - Weatherization  (include oil overcharge $$)",null,null,null,"C.3b.2.",325756,null,null,null,null,null,"C.3b.2.",null,"LIHEAP - Weatherization  (include oil overcharge $$)",null,null,null,"C.3b.2."]
[null,null,null,"C.3b.3.",null,"Head Start",null,null,null,"C.3b.3.",null,null,null,null,null,null,"C.3b.3.",null,"Head Start",null,null,null,"C.3b.3."]
[null,null,null,"C.3b.4.",null,"Early Head Start",null,null,null,"C.3b.4.",null,null,null,null,null,null,"C.3b.4.",null,"Early Head Start",null,null,null,"C.3b.4."]
[null,null,null,"C.3b.5.",null,"Older Americans Act ",null,null,null,"C.3b.5.",null,null,null,null,null,null,"C.3b.5.",null,"Older Americans Act ",null,null,null,"C.3b.5."]
[null,null,null,"C.3b.6.",null,"Social Services Block Grant (SSBG)",null,null,null,"C.3b.6.",31300,null,null,null,null,null,"C.3b.6.",null,"Social Services Block Grant (SSBG)",null,null,null,"C.3b.6.",4100]
[null,null,null,"C.3b.7.",null,"Medicare/Medicaid ",null,null,null,"C.3b.7.",null,null,null,null,null,null,"C.3b.7.",null,"Medicare/Medicaid ",null,null,null,"C.3b.7."]
[null,null,null,"C.3b.8.",null,"Assets for Independence (AFI)",null,null,null,"C.3b.8.",null,null,null,null,null,null,"C.3b.8.",null,"Assets for Independence (AFI)",null,null,null,"C.3b.8."]
[null,null,null,"C.3b.9.",null,"Temporary Assistance for Needy Families (TANF)",null,null,null,"C.3b.9.",366469,null,null,null,null,null,"C.3b.9.",null,"Temporary Assistance for Needy Families (TANF)",null,null,null,"C.3b.9.",362898]
[null,null,null,"C.3b.10.",null,"Child Care Development Block Grant (CCDBG)",null,null,null,"C.3b.10.",null,null,null,null,null,null,"C.3b.10.",null,"Child Care Development Block Grant (CCDBG)",null,null,null,"C.3b.10."]
[null,null,null,"C.3b.11.",null,"Community Economic Development (CED)",null,null,null,"C.3b.11.",null,null,null,null,null,null,"C.3b.11.",null,"Community Economic Development (CED)",null,null,null,"C.3b.11."]
[null,null,null,"C.3b.12.",null,"Other HHS Resource Description",{"$f":"IF(AND(OR(AND(F33<>\"\",I33<>\"\",K33<>\"\"),AND(F33=\"\",I33=\"\",K33=\"\"), AND(F33=\"\",I33=\"\",K33=0)), OR(AND(F34<>\"\",I34<>\"\",K34<>\"\"),AND(F34=\"\",I34=\"\",K34=\"\"), AND(F34=\"\",I34=\"\",K34=0) ), OR(AND(F35<>\"\",I35<>\"\",K35<>\"\"),AND(F35=\"\",I35=\"\",K35=\"\"), AND(F35=\"\",I35=\"\",K35=0)), OR(AND(F36<>\"\",I36<>\"\",K36<>\"\"),AND(F36=\"\",I36=\"\",K36=\"\"), AND(F36=\"\",I36=\"\",K36=0))),\"\",\"ENTER DESCRIPTION, CFDA#, & DOLLAR AMOUNT BELOW\")","v":""},null,null,null,null,null,null,null,null,null,"C.3b.12.",null,"Other HHS Resources"]
[null,null,null,null,"C.3b.12.i.",null,null,"CFDA #:",null,"C.3b.12.i.",null,null,null,null,null,null,null,"C.3b.12.i.",null,null,"CFDA #:",null,"C.3b.12.i."]
[null,null,null,null,"C.3b.12.ii.",null,null,"CFDA #:",null,"C.3b.12.ii.",null,null,null,null,null,null,null,"C.3b.12.ii.",null,null,"CFDA #:",null,"C.3b.12.ii."]
[null,null,null,null,"C.3b.12.iii.",null,null,"CFDA #:",null,"C.3b.12.iii.",null,null,null,null,null,null,null,"C.3b.12.iii.",null,null,"CFDA #:",null,"C.3b.12.iii."]
[null,null,null,null,"C.3b.12.iv.",null,null,"CFDA #:",null,"C.3b.12.iv.",null,null,null,null,null,null,null,"C.3b.12.iv.",null,null,"CFDA #:",null,"C.3b.12.iv."]
[null,null,null,null,"C.3b.12.v.",null,null,"CFDA #:",null,"C.3b.12.v."]
[null,null,null,null,"C.3b.12.vi.",null,null,"CFDA #:",null,"C.3b.12.vi."]
[null,null,null,null,"C.3b.12.vii.",null,null,"CFDA #:",null,"C.3b.12.vii."]
[null,null,null,null,"C.3b.12.viii.",null,null,"CFDA #:",null,"C.3b.12.viii."]
[null,null,null,null,"C.3b.12.ix.",null,null,"CFDA #:",null,"C.3b.12.ix."]
[null,null,null,null,"C.3b.12.x.",null,null,"CFDA #:",null,"C.3b.12.x."]
[]
[null,null,null,null,"C.3b.13. Total Other HHS Resources (autocalculated)",null,null,null,null,"C.3b.13.",{"$f":"SUM(K33:K42)","v":0},null,null,null,null,null,null,"C.3b.13. Total Other HHS Resources (autocalculated)",null,null,null,null,"C.3b.13.",{"$f":"SUM(X33:X36)","v":0}]
[null,null,"C.3c. Department of Agriculture (USDA)",null,null,null,null,null,null,null,null,null,null,null,null,"C.3c. Department of Agriculture (USDA)"]
[null,null,null,"C.3c.1.",null,"Special Supplemental Nutrition for Women, Infants, and Children (WIC)",null,null,null,"C.3c.1.",null,null,null,null,null,null,"C.3c.1.",null,"Special Supplemental Nutrition for Women, Infants, and Children (WIC)",null,null,null,"C.3c.1."]
[null,null,null,"C.3c.2.",null,"All USDA Non-Food programs (e.g. rural development)",null,null,null,"C.3c.2.",null,null,null,null,null,null,"C.3c.2.",null,"All USDA Non-Food programs (e.g. rural development)",null,null,null,"C.3c.2."]
[null,null,null,"C.3c.3.",null,"All other USDA Food programs",null,null,null,"C.3c.3.",45337,null,null,null,null,null,"C.3c.3.",null,"All other USDA Food programs",null,null,null,"C.3c.3.",21582.84]
[null,null,"C.3d. Department of Housing and Urban Development (HUD)",null,null,null,null,null,null,null,null,null,null,null,null,"C.3d. Department of Housing and Urban Development (HUD)"]
[null,null,null,"C.3d.1.",null,"Community Development Block Grant (CDBG) - Federal, State, and Local",null,null,null,"C.3d.1.",789937,null,null,null,null,null,"C.3d.1.",null,"Community Development Block Grant (CDBG) - Federal, State, and Local",null,null,null,"C.3d.1."]
[null,null,null,"C.3d.2.",null,"Section 8",null,null,null,"C.3d.2.",null,null,null,null,null,null,"C.3d.2.",null,"Section 8",null,null,null,"C.3d.2."]
[null,null,null,"C.3d.3.",null,"Section 202",null,null,null,"C.3d.3.",null,null,null,null,null,null,"C.3d.3.",null,"Section 202",null,null,null,"C.3d.3."]
[null,null,null,"C.3d.4.",null,"Home Tenant-Based Rental Assistance (HOME TBRA)",null,null,null,"C.3d.4.",26733,null,null,null,null,null,"C.3d.4.",null,"Home Tenant-Based Rental Assistance (HOME TBRA)",null,null,null,"C.3d.4."]
[null,null,null,"C.3d.5.",null,"HOPE for Homeowners Program (H4H)",null,null,null,"C.3d.5.",null,null,null,null,null,null,"C.3d.5.",null,"HOPE for Homeowners Program (H4H)",null,null,null,"C.3d.5."]
[null,null,null,"C.3d.6.",null,"Emergency Solutions Grant (ESG)",null,null,null,"C.3d.6.",447225,null,null,null,null,null,"C.3d.6.",null,"Emergency Solutions Grant (ESG)",null,null,null,"C.3d.6.",114037]
[null,null,null,"C.3d.7.",null,"Continuum of Care (CoC)",null,null,null,"C.3d.7.",null,null,null,null,null,null,"C.3d.7.",null,"Continuum of Care (CoC)",null,null,null,"C.3d.7."]
[null,null,null,"C.3d.8.",null,"All other HUD programs, including homeless programs",null,null,null,"C.3d.8.",null,null,null,null,null,null,"C.3d.8.",null,"All other HUD programs, including homeless programs",null,null,null,"C.3d.8."]
[null,null,"C.3e. Department of Labor (DOL)",null,null,null,null,null,null,null,null,null,null,null,null,"C.3e. Department of Labor (DOL)"]
[null,null,null,"C.3e.1.",null,"Workforce Innovation and Opportunity Act (WIOA) *previously WIA",null,null,null,"C.3e.1.",null,null,null,null,null,null,"C.3e.1.",null,"Workforce Innovation and Opportunity Act (WIOA) *previously WIA",null,null,null,"C.3e.1."]
[null,null,null,"C.3e.2.",null,"Other DOL Employment and Training programs ",null,null,null,"C.3e.2.",null,null,null,null,null,null,"C.3e.2.",null,"Other DOL Employment and Training programs ",null,null,null,"C.3e.2."]
[null,null,null,"C.3e.3.",null,"All other DOL programs",null,null,null,"C.3e.3.",null,null,null,null,null,null,"C.3e.3.",null,"All other DOL programs",null,null,null,"C.3e.3."]
[null,null,"C.3f. Corporation for National and Community Service (CNCS) programs",null,null,null,null,null,null,"C.3f.",null,null,null,null,null,"C.3f. Corporation for National and Community Service (CNCS) programs",null,null,null,null,null,null,"C.3f."]
[null,null,"C.3g. Federal Emergency Management Agency (FEMA)",null,null,null,null,null,null,"C.3g.",null,null,null,null,null,"C.3g. Federal Emergency Management Agency (FEMA)",null,null,null,null,null,null,"C.3g."]
[null,null,"C.3h. Department of Transportation",null,null,null,null,null,null,"C.3h.",null,null,null,null,null,"C.3h. Department of Transportation",null,null,null,null,null,null,"C.3h."]
[null,null,"C.3i. Department of Education",null,null,null,null,null,null,"C.3i.",null,null,null,null,null,"C.3i. Department of Education",null,null,null,null,null,null,"C.3i."]
[null,null,"C.3j. Department of Justice",null,null,null,null,null,null,"C.3j.",null,null,null,null,null,"C.3j. Department of Justice",null,null,null,null,null,null,"C.3j."]
[null,null,"C.3k. Department of Treasury ",null,null,null,null,null,null,"C.3k.",181302,null,null,null,null,"C.3k. Department of Treasury ",null,null,null,null,null,null,"C.3k."]
[null,null,"C.3l. Other Federal Resources",null,null,null,{"$f":"IF(AND(OR(AND(F69<>\"\",I69<>\"\",K69<>\"\"),AND(F69=\"\",I69=\"\",K69=\"\"), AND(F69=\"\",I69=\"\",K69=0)), OR(AND(F70<>\"\",I70<>\"\",K70<>\"\"),AND(F70=\"\",I70=\"\",K70=\"\"), AND(F70=\"\",I70=\"\",K70=0) ), OR(AND(F71<>\"\",I71<>\"\",K71<>\"\"),AND(F71=\"\",I71=\"\",K71=\"\"), AND(F71=\"\",I71=\"\",K71=0)), OR(AND(F72<>\"\",I72<>\"\",K72<>\"\"),AND(F72=\"\",I72=\"\",K72=\"\"), AND(F72=\"\",I72=\"\",K72=0))),\"\",\"ENTER DESCRIPTION, CFDA#, & DOLLAR AMOUNT BELOW\")","v":""},null,null,null,null,null,null,null,null,"C.3l. Other Federal Resources"]
[null,null,null,null,"C.3l.i.","EDA Planning",null,"CFDA #:","11.307","C.3l.i.",260000,null,null,null,null,null,null,"C.3l.i.",null,null,"CFDA #:",null,"C.3l.i."]
[null,null,null,null,"C.3l.ii.",null,null,"CFDA #:",null,"C.3l.ii.",null,null,null,null,null,null,null,"C.3l.ii.",null,null,"CFDA #:",null,"C.3l.ii."]
[null,null,null,null,"C.3l.iii.",null,null,"CFDA #:",null,"C.3l.iii.",null,null,null,null,null,null,null,"C.3l.iii.",null,null,"CFDA #:",null,"C.3l.iii."]
[null,null,null,null,"C.3l.iv.",null,null,"CFDA #:",null,"C.3l.iv.",null,null,null,null,null,null,null,"C.3l.iv.",null,null,"CFDA #:",null,"C.3l.iv."]
[null,null,null,null,"C.3l.v.",null,null,"CFDA #:",null,"C.3l.v."]
[null,null,null,null,"C.3l.vi.",null,null,"CFDA #:",null,"C.3l.vi."]
[null,null,null,null,"C.3l.vii.",null,null,"CFDA #:",null,"C.3l.vii."]
[null,null,null,null,"C.3l.viii.",null,null,"CFDA #:",null,"C.3l.viii."]
[null,null,null,null,"C.3l.ix.",null,null,"CFDA #:",null,"C.3l.ix."]
[null,null,null,null,"C.3l.x.",null,null,"CFDA #:",null,"C.3l.x."]
[]
[null,null,"C.3m. Total Other Federal Resources (autocalculated)",null,null,null,null,null,null,"C.3m.",{"$f":"SUM(K69:K78)","v":260000},null,null,null,null,"C.3m. Total Other Federal Resources (autocalculated)",null,null,null,null,null,null,"C.3m.",{"$f":"SUM(X69:X72)","v":0}]
[null,null,"C.3n. Total: Non-CSBG Federal Resources Allocated (autocalculated)",null,null,null,null,null,null,"C.3n.",{"$f":"SUM(K19,K21:K31,K44,K46:K48,K50:K57,K59:K67,K80)","v":3222543},null,null,null,null,"C.3n. Total: Non-CSBG Federal Resources Allocated (autocalculated)",null,null,null,null,null,null,"C.3.n.",{"$f":"SUM(X19,X21:X30,X44,X46:X48,X50:X57,X59:X67,X80)","v":734375.84}]
[]
[]
[null,null,"C.4.  State Resources Allocated",null,null,null,null,null,null,null,null,null,null,null,null,"C.4.  State Resources Allocated"]
[]
[null,null,null,"C.4a.",null,"State appropriated funds used for  same purpose as Federal CSBG funds",null,null,null,"C.4a.",null,null,null,null,null,null,"C.4a.",null,"State appropriated funds used for same purpose as Federal CSBG funds",null,null,null,"C.4a."]
[null,null,null,"C.4b.",null,"State Housing and Homeless programs (include housing tax credits)",null,null,null,"C.4b.",null,null,null,null,null,null,"C.4b.",null,"State Housing and Homeless programs (include housing tax credits)",null,null,null,"C.4b."]
[null,null,null,"C.4c.",null,"State Nutrition programs",null,null,null,"C.4c.",25568,null,null,null,null,null,"C.4c.",null,"State Nutrition programs",null,null,null,"C.4c.",25568]
[null,null,null,"C.4d.",null,"State Early Childhood Programs (e.g. Head Start, Day Care)",null,null,null,"C.4d.",null,null,null,null,null,null,"C.4d.",null,"State Early Childhood Programs (e.g. Head Start, Day Care)",null,null,null,"C.4d."]
[null,null,null,"C.4e.",null,"State Energy programs",null,null,null,"C.4e.",null,null,null,null,null,null,"C.4e.",null,"State Energy programs",null,null,null,"C.4e."]
[null,null,null,"C.4f.",null,"State Health programs",null,null,null,"C.4f.",null,null,null,null,null,null,"C.4f.",null,"State Health programs",null,null,null,"C.4f."]
[null,null,null,"C.4g.",null,"State Youth Development programs",null,null,null,"C.4g.",null,null,null,null,null,null,"C.4g.",null,"State Youth Development programs",null,null,null,"C.4g."]
[null,null,null,"C.4h.",null,"State Employment and Training programs",null,null,null,"C.4h.",null,null,null,null,null,null,"C.4h.",null,"State Employment and Training programs",null,null,null,"C.4h."]
[null,null,null,"C.4i.",null,"State Senior programs",null,null,null,"C.4i.",264100,null,null,null,null,null,"C.4i.",null,"State Senior programs",null,null,null,"C.4i."]
[null,null,null,"C.4j.",null,"State Transportation programs",null,null,null,"C.4j.",null,null,null,null,null,null,"C.4j.",null,"State Transportation programs",null,null,null,"C.4j."]
[null,null,null,"C.4k.",null,"State Education programs",null,null,null,"C.4k.",null,null,null,null,null,null,"C.4k.",null,"State Education programs",null,null,null,"C.4k."]
[null,null,null,"C.4l.",null,"State Community, Rural and Economic Development programs",null,null,null,"C.4l.",null,null,null,null,null,null,"C.4l.",null,"State Community, Rural and Economic Development programs",null,null,null,"C.4l."]
[null,null,null,"C.4m.",null,"State Family Development programs",null,null,null,"C.4m.",null,null,null,null,null,null,"C.4m.",null,"State Family Development programs",null,null,null,"C.4m."]
[null,null,null,"C.4n.",null,"Other State Resources",null,{"$f":"IF(AND(OR(AND(F100<>\"\",K100<>\"\"), AND(F100=\"\",K100=\"\"), AND(F100=\"\", K100=0)), OR(AND(F101<>\"\",K101<>\"\"), AND(F101=\"\",K101=\"\"), AND(F101=\"\", K101=0)), OR(AND(F102<>\"\",K102<>\"\"), AND(F102=\"\",K102=\"\"), AND(F102=\"\", K102=0) ), OR(AND(F103<>\"\",K103<>\"\"), AND(F103=\"\",K103=\"\"), AND(F103=\"\", K103=0))),\"\",\"ENTER DESCRIPTION & DOLLAR AMOUNT BELOW\")","v":""},null,null,null,null,null,null,null,null,"C.4n.",null,"Other State Resources"]
[null,null,null,null,"C.4n.i.","EITC",null,null,null,"C.4n.i.",22750,null,null,null,null,null,null,"C.4n.i.",null,null,null,null,"C.4n.i."]
[null,null,null,null,"C.4n.ii.",null,null,null,null,"C.4n.ii.",null,null,null,null,null,null,null,"C.4n.ii.",null,null,null,null,"C.4n.ii."]
[null,null,null,null,"C.4n.iii.",null,null,null,null,"C.4n.iii.",null,null,null,null,null,null,null,"C.4n.iii.",null,null,null,null,"C.4n.iii."]
[null,null,null,null,"C.4n.iv.",null,null,null,null,"C.4n.iv.",null,null,null,null,null,null,null,"C.4n.iv.",null,null,null,null,"C.4n.iv."]
[null,null,null,null,"C.4n.v.",null,null,null,null,"C.4n.v."]
[null,null,null,null,"C.4n.vi.",null,null,null,null,"C.4n.vi."]
[null,null,null,null,"C.4n.vii.",null,null,null,null,"C.4n.vii."]
[null,null,null,null,"C.4n.viii.",null,null,null,null,"C.4n.viii."]
[null,null,null,null,"C.4n.ix.",null,null,null,null,"C.4n.ix."]
[null,null,null,null,"C.4n.x.",null,null,null,null,"C.4n.x."]
[null,null,null,null,"C.4o. Total Other State Resources (autocalculated)",null,null,null,null,"C.4o.",{"$f":"SUM(K100:K109)","v":22750},null,null,null,null,null,null,"C.4o. Total Other State Resources (autocalculated)",null,null,null,null,"C.4o.",{"$f":"SUM(X100:X103)","v":0}]
[]
[null,null,"C.4p. Total: State Resources Allocated (autocalculated)",null,null,null,null,null,null,"C.4p.",{"$f":"SUM(K86:K98,K110)","v":312418},null,null,null,null,"C.4p. Total: State Resources Allocated (autocalculated)",null,null,null,null,null,null,"C.4p.",{"$f":"SUM(X86:X98,X110)","v":25568}]
[null,null,"C.4q.","If any of these resources were also reported under Item C.3n. (Federal Resources), please estimate the amount.",null,null,null,null,null,"C.4q.",null,null,null,null,null,"C.4q.","If any of these resources were also reported under Item C.3n. (Federal Resources), please estimate the amount.",null,null,null,null,null,"C.4q."]
[]
[]
[null,null,"C.5. Local Resources Allocated",null,null,null,null,null,null,null,null,null,null,null,null,"C.5. Local Resources Allocated"]
[]
[null,null,null,"C.5a.",null,"Amount of unrestricted funds appropriated by local government",null,null,null,"C.5a.",100000,null,null,null,null,null,"C.5a.",null,"Amount of unrestricted funds appropriated by local government",null,null,null,"C.5a."]
[null,null,null,"C.5b.",null,"Amount of restricted funds appropriated by local government",null,null,null,"C.5b.",null,null,null,null,null,null,"C.5b.",null,"Amount of restricted funds appropriated by local government",null,null,null,"C.5b."]
[null,null,null,"C.5c.",null,"Value of Contract Services",null,null,null,"C.5c.",null,null,null,null,null,null,"C.5c.",null,"Value of Contract Services",null,null,null,"C.5c."]
[null,null,null,"C.5d.",null,"Value of in-kind goods/services received from local government",null,null,null,"C.5d.",null,null,null,null,null,null,"C.5d.",null,"Value of in-kind goods/services received from local government",null,null,null,"C.5d."]
[]
[null,null,"C.5e. Total: Local Resources Allocated (autocalculated)",null,null,null,null,null,null,"C.5e.",{"$f":"SUM(K118:K121)","v":100000},null,null,null,null,"C.5e. Total: Local Resources Allocated (autocalculated)",null,null,null,null,null,null,"C.5e.",{"$f":"SUM(X118:X121)","v":0}]
[]
[null,null,"C.5f.","If any of these resources were also reported under Item C.3n. or C.4p. (Federal or State Resources), please estimate the amount.",null,null,null,null,null,"C.5f.",null,null,null,null,null,"C.5f.","If any of these resources were also reported under Item C.3n. or C.4p. (Federal or State Resources), please estimate the amount.",null,null,null,null,null,"C.5f."]
[]
[]
[null,null,"C.6. Private Sector Resources Allocated",null,null,null,null,null,null,null,null,null,null,null,null,"C.6. Private Sector Resources Allocated"]
[]
[null,null,null,"C.6a.",null,"Funds from foundations, corporations, United Way, other nonprofits",null,null,null,"C.6a.",24219,null,null,null,null,null,"C.6a.",null,"Funds from foundations, corporations, United Way, other nonprofits",null,null,null,"C.6a.",27779]
[null,null,null,"C.6b.",null,"Other donated funds",null,null,null,"C.6b.",29522,null,null,null,null,null,"C.6b.",null,"Other donated funds",null,null,null,"C.6b.",17039]
[null,null,null,"C.6c.",null,"Value of other donated items, food, clothing, furniture, etc.",null,null,null,"C.6c.",1482327,null,null,null,null,null,"C.6c.",null,"Value of other donated items, food, clothing, furniture, etc.",null,null,null,"C.6c.",1515282]
[null,null,null,"C.6d.",null,"Value of in-kind services received from businesses",null,null,null,"C.6d.",5899,null,null,null,null,null,"C.6d.",null,"Value of in-kind services received from businesses",null,null,null,"C.6d.",6350]
[null,null,null,"C.6e.",null,"Payments by clients for services",null,null,null,"C.6e.",null,null,null,null,null,null,"C.6e.",null,"Payments by clients for services",null,null,null,"C.6e."]
[null,null,null,"C.6f.",null,"Payments by private entities for goods or services for low income ",null,null,null,"C.6f.",null,null,null,null,null,null,"C.6f.",null,"Payments by private entities for goods or services for low income ",null,null,null,"C.6f."]
[null,null,null,null,null,"clients or communities",null,null,null,null,null,null,null,null,null,null,null,null,"clients or communities"]
[]
[null,null,"C.6g. Total: Private Sector Resources Allocated (autocalculated)",null,null,null,null,null,null,"C.6g.",{"$f":"SUM(K130:K134,K135)","v":1541967},null,null,null,null,"C.6g. Total: Private Sector Resources Allocated (autocalculated)",null,null,null,null,null,null,"C.6g.",{"$f":"SUM(X130:X134,X135)","v":1566450}]
[]
[null,null,"C.6h.","If any of these resources were also reported under Item C.3n., C.4p. or C.5e. (Federal, State or Local Resources), please estimate the amount.",null,null,null,null,null,"C.6h.",null,null,null,null,null,"C.6h.","If any of these resources were also reported under Item C.3n., C.4p. or C.5e. (Federal, State or Local Resources), please estimate the amount.",null,null,null,null,null,"C.6h."]
[]
[]
[]
[null,null,"C.7. Total Non-CSBG Resources Allocated: (Federal, State, Local & Private)*",null,null,null,null,null,null,"C.7.",{"$f":"SUM((K81+K112+K123+K138)-(K113+K125+K140))","v":5176928},null,null,null,null,"C.7. Total Non-CSBG Resources Allocated: (Federal, State, Local & Private)*",null,null,null,null,null,null,"C.7.",{"$f":"SUM((X81+X112+X123+X138)-(X113+X125+X140))","v":2326393.84}]
[null,null,"C.8. Total Resources in CSBG Eligible Entity (including CSBG)*",null,null,null,null,null,null,"C.8.",{"$f":"SUM((K81+K112+K123+K138)-(K113+K125+K140)+K14)","v":5393782},null,null,null,null,"C.8. Total Resources in CSBG Eligible Entity (including CSBG)*",null,null,null,null,null,null,"C.8.",{"$f":"SUM((X81+X112+X123+X138)-(X113+X125+X140)+X14)","v":2462772.84}]
[]
[null,null,"Note : * All totals are autocalculated ",null,null,null,null,null,null,null,null,null,null,null,null,"Note : * All totals are autocalculated "]

{"sheet":"Identification","index":5,"n_rows":12,"n_cols":4,"rows_kept":12,"cut":false,"hidden":true,"merged":[]}
[null,null,"Version:","M2-2020.1"]
[]
[null,null,"State:",{"$f":"M2StateName","v":"Utah"}]
[null,null,"Name of CSBG Eligible Entity Reporting:",{"$f":"M2AgencyName","v":"Southeastern Utah Association of Local Governments"}]
[null,null,"DUNS Number:",{"$f":"M2DUNS","v":"097758627"}]
[null,null,"Organization:","ACF"]
[null,null,"Program Acronym:","CSBG"]
[null,null,"Lead Agency:","UTAH"]
[null,null,"Grant Number:","2001UTCOSR"]
[]
[null,null,"Report Period Start Date:","2019-10-01"]
[null,null,"Report Period End Date:","2020-09-30"]

{"sheet":"XML Export Map","index":6,"n_rows":221,"n_cols":10,"rows_kept":221,"cut":false,"hidden":true,"merged":[]}
[]
["Question/Reference","Smartform Range Name","Address","Value","Type","XML Export Name for DB","Max Length"]
[null,null,null,null,null,null,null,null,{"$f":"FIND(\"]\",J3)","v":87},{"$f":"CELL(\"address\",INDIRECT(B4))","v":"'[FY20_UT_M2_Southeastern_Utah_Association_of_Local_Governments_097758627 (1) (1).xlsm]Identification'!$D$8"}]
["leadAgency","M2LeadAgency",{"$f":"\"'='\" & MID(CELL(\"address\",INDIRECT(B4)),$I$3+1,100)","v":"'='Identification'!$D$8"},{"$f":"M2LeadAgency","v":"UTAH"},"Text","GRANTEENAME",100]
["State Name","M2StateName",{"$f":"\"'='\" & MID(CELL(\"address\",INDIRECT(B5)),$I$3+1,100)","v":"'='Section A. Local CSBG Expen'!$C$6"},{"$f":"M2StateName","v":"Utah"},"Text"]
["Agency Name","M2AgencyName",{"$f":"\"'='\" & MID(CELL(\"address\",INDIRECT(B6)),$I$3+1,100)","v":"'='Section A. Local CSBG Expen'!$C$4"},{"$f":"M2AgencyName","v":"Southeastern Utah Association of Local Governments"},"Text","ELIGIBLEENTITY"]
["orgAbbrev","M2OrgAbbrev",{"$f":"\"'='\" & MID(CELL(\"address\",INDIRECT(B7)),$I$3+1,100)","v":"'='Identification'!$D$6"},{"$f":"M2OrgAbbrev","v":"ACF"},"Text","orgAbbrev"]
["programAcronym","M2ProgramAcronym",{"$f":"\"'='\" & MID(CELL(\"address\",INDIRECT(B8)),$I$3+1,100)","v":"'='Identification'!$D$7"},{"$f":"M2ProgramAcronym","v":"CSBG"},"Text","programAcronym"]
["DUNS Number","M2Duns",{"$f":"\"'='\" & MID(CELL(\"address\",INDIRECT(B9)),$I$3+1,100)","v":"'='Section A. Local CSBG Expen'!$D$6"},{"$f":"M2DUNS","v":"097758627"},"Text","duns"]
["reportPeriodStartDate","M2ReportPeriodStartDate",{"$f":"\"'='\" & MID(CELL(\"address\",INDIRECT(B10)),$I$3+1,100)","v":"'='Identification'!$D$11"},{"$f":"M2ReportPeriodStartDate","v":"2019-10-01"},"Date","reportPeriodStartDate"]
["reportPeriodEndDate","M2ReportPeriodEndDate",{"$f":"\"'='\" & MID(CELL(\"address\",INDIRECT(B11)),$I$3+1,100)","v":"'='Identification'!$D$12"},{"$f":"M2ReportPeriodEndDate","v":"2020-09-30"},"Date","reportPeriodEndDate"]
["grantNumber","M2GrantNumber",{"$f":"\"'='\" & MID(CELL(\"address\",INDIRECT(B12)),$I$3+1,100)","v":"'='Identification'!$D$9"},{"$f":"M2GrantNumber","v":"2001UTCOSR"},"Text","grantNumber"]
["subGrantee",null,null,true,"True/False","subGrantee"]
["A1_Period","A1_Period",{"$f":"\"'='\" & MID(CELL(\"address\",INDIRECT(B14)),$I$3+1,100)","v":"'='Lookups'!$C$15"},{"$f":"IF(Lookups!$C$15=\"\",\"\",Lookups!$C$15)","v":1},"Number","M2A1"]
["A1_Period","Period_1",{"$f":"\"'='\" & MID(CELL(\"address\",INDIRECT(B15)),$I$3+1,100)","v":"'='Lookups'!$C$16"},{"$f":"IF(Lookups!$C$16=\"\",0,Lookups!$C$16)","v":false},"True/False","M2A1aJulyToJune"]
["A1_Period","Period_2",{"$f":"\"'='\" & MID(CELL(\"address\",INDIRECT(B16)),$I$3+1,100)","v":"'='Lookups'!$C$17"},{"$f":"IF(Lookups!$C$17=\"\",0,Lookups!$C$17)","v":true},"True/False","M2A1bOctToSept"]
["A1_Period","Period_3",{"$f":"\"'='\" & MID(CELL(\"address\",INDIRECT(B17)),$I$3+1,100)","v":"'='Lookups'!$C$18"},{"$f":"IF(Lookups!$C$18=\"\",0,Lookups!$C$18)","v":false},"True/False","M2A1cJanToDec"]
["A2a_Employment","M2A2aEmployment",{"$f":"\"'='\" & MID(CELL(\"address\",INDIRECT(B18)),$I$3+1,100)","v":"'='Section A. Local CSBG Expen'!$D$18"},{"$f":" IF(ISBLANK(M2A2aEmployment),\"\",M2A2aEmployment)","v":15825},"Number","M2A2aEmployment"]
["A2b_Education","M2A2bEducation",{"$f":"\"'='\" & MID(CELL(\"address\",INDIRECT(B19)),$I$3+1,100)","v":"'='Section A. Local CSBG Expen'!$D$19"},{"$f":" IF(ISBLANK(M2A2bEducation),\"\",M2A2bEducation)","v":""},"Number","M2A2bEducation"]
["A2c_Income","M2A2cIncome",{"$f":"\"'='\" & MID(CELL(\"address\",INDIRECT(B20)),$I$3+1,100)","v":"'='Section A. Local CSBG Expen'!$D$20"},{"$f":" IF(ISBLANK(M2A2cIncome),\"\",M2A2cIncome)","v":""},"Number","M2A2cIncome"]
["A2d_Housing","M2A2dHousing",{"$f":"\"'='\" & MID(CELL(\"address\",INDIRECT(B21)),$I$3+1,100)","v":"'='Section A. Local CSBG Expen'!$D$21"},{"$f":" IF(ISBLANK(M2A2dHousing),\"\",M2A2dHousing)","v":2670},"Number","M2A2dHousing"]
["A2e_Health","M2A2eHealth",{"$f":"\"'='\" & MID(CELL(\"address\",INDIRECT(B22)),$I$3+1,100)","v":"'='Section A. Local CSBG Expen'!$D$22"},{"$f":" IF(ISBLANK(M2A2eHealth),\"\",M2A2eHealth)","v":94890},"Number","M2A2eHealth"]
["A2f_Civic","M2A2fCivic",{"$f":"\"'='\" & MID(CELL(\"address\",INDIRECT(B23)),$I$3+1,100)","v":"'='Section A. Local CSBG Expen'!$D$23"},{"$f":" IF(ISBLANK(M2A2fCivic),\"\",M2A2fCivic)","v":""},"Number","M2A2fCivic"]
["A2g_Services","M2A2gServices",{"$f":"\"'='\" & MID(CELL(\"address\",INDIRECT(B24)),$I$3+1,100)","v":"'='Section A. Local CSBG Expen'!$D$24"},{"$f":" IF(ISBLANK(M2A2gServices),\"\",M2A2gServices)","v":""},"Number","M2A2gServices"]
["A2h_Linkages","M2A2hLinkages",{"$f":"\"'='\" & MID(CELL(\"address\",INDIRECT(B25)),$I$3+1,100)","v":"'='Section A. Local CSBG Expen'!$D$25"},{"$f":" IF(ISBLANK(M2A2hLinkages),\"\",M2A2hLinkages)","v":""},"Number","M2A2hLinkages"]
["A2i_Capacity","M2A2iCapacity",{"$f":"\"'='\" & MID(CELL(\"address\",INDIRECT(B26)),$I$3+1,100)","v":"'='Section A. Local CSBG Expen'!$D$26"},{"$f":" IF(ISBLANK(M2A2iCapacity),\"\",M2A2iCapacity)","v":10970},"Number","M2A2iCapacity"]
["A2j_Other","M2A2jOther",{"$f":"\"'='\" & MID(CELL(\"address\",INDIRECT(B27)),$I$3+1,100)","v":"'='Section A. Local CSBG Expen'!$D$27"},{"$f":" IF(ISBLANK(M2A2jOther),\"\",M2A2jOther)","v":""},"Number","M2A2jOther"]
["A2k_Total","M2A2kTotal",{"$f":"\"'='\" & MID(CELL(\"address\",INDIRECT(B28)),$I$3+1,100)","v":"'='Section A. Local CSBG Expen'!$D$28"},{"$f":" IF(ISBLANK(M2A2kTotal),\"\",M2A2kTotal)","v":124355},"Number","M2A2kTotal"]
["A3_Admin","M2A3Admin",{"$f":"\"'='\" & MID(CELL(\"address\",INDIRECT(B29)),$I$3+1,100)","v":"'='Section A. Local CSBG Expen'!$D$30"},{"$f":" IF(ISBLANK(M2A3Admin),\"\",M2A3Admin)","v":14740},"Number","M2A3Admin"]
["A41_Activities","A41_Activities",{"$f":"\"'='\" & MID(CELL(\"address\",INDIRECT(B30)),$I$3+1,100)","v":"'='Lookups'!$C$20"},{"$f":" IF(ISBLANK(A41_Activities),\"\",A41_Activities)","v":5},"Number",""]
["A41_Activities","M2A41CommunityNeeds",{"$f":"\"'='\" & MID(CELL(\"address\",INDIRECT(B31)),$I$3+1,100)","v":"'='Lookups'!$C$22"},{"$f":"IF(Lookups!C22=\"\",\"\",Lookups!C22)","v":true},"True/False","M2A41CommunityNeeds"]
["A41_Activities","M2A41DataManagement",{"$f":"\"'='\" & MID(CELL(\"address\",INDIRECT(B32)),$I$3+1,100)","v":"'='Lookups'!$C$23"},{"$f":"IF(Lookups!C23=\"\",\"\",Lookups!C23)","v":true},"True/False","M2A41DataManagement"]
["A41_Other","M2A41Other",{"$f":"\"'='\" & MID(CELL(\"address\",INDIRECT(B33)),$I$3+1,100)","v":"'='Lookups'!$C$24"},{"$f":"IF(Lookups!$C$24=\"\",\"\",Lookups!$C$24)","v":true},"True/False","M2A41Other"]
["A41_Activities","M2A41StrategicPlanning",{"$f":"\"'='\" & MID(CELL(\"address\",INDIRECT(B34)),$I$3+1,100)","v":"'='Lookups'!$C$25"},{"$f":"IF(Lookups!$C$25=\"\",\"\",Lookups!$C$25)","v":true},"True/False","M2A41StrategicPlanning"]
["A41_OtherText","M2A41OtherText",{"$f":"\"'='\" & MID(CELL(\"address\",INDIRECT(B35)),$I$3+1,100)","v":"'='Section A. Local CSBG Expen'!$C$42"},{"$f":" IF(ISBLANK(M2A41OtherText),\"\",M2A41OtherText)","v":" Staff meetings, board meetings, Risk assessment, and succession planning. "},"Text","M2A41OtherText"]
["A41_Activities","M2A41Training",{"$f":"\"'='\" & MID(CELL(\"address\",INDIRECT(B36)),$I$3+1,100)","v":"'='Lookups'!$C$26"},{"$f":"IF(Lookups!$C$26=\"\",\"\",Lookups!$C$26)","v":true},"True/False","M2A41Training"]
["A_Comments","M2AComments",{"$f":"\"'='\" & MID(CELL(\"address\",INDIRECT(B37)),$I$3+1,100)","v":"'='Section A. Local CSBG Expen'!$C$47"},{"$f":" IF(ISBLANK(M2AComments),\"\",M2AComments)","v":""},"Memo","M2AComments",5000]
["B2a_Board","M2B2aBoard",{"$f":"\"'='\" & MID(CELL(\"address\",INDIRECT(B38)),$I$3+1,100)","v":"'='Section B. Local Agency Capacit'!$D$13"},{"$f":" IF(ISBLANK(M2B2aBoard),\"\",M2B2aBoard)","v":18},"Number","M2B2aBoard"]
["B2b_Agency","M2B2bAgency",{"$f":"\"'='\" & MID(CELL(\"address\",INDIRECT(B39)),$I$3+1,100)","v":"'='Section B. Local Agency Capacit'!$D$14"},{"$f":" IF(ISBLANK(M2B2bAgency),\"\",M2B2bAgency)","v":336},"Number","M2B2bAgency"]
["B3a_VolHoursDonated","M2B3aVolHoursDonated",{"$f":"\"'='\" & MID(CELL(\"address\",INDIRECT(B40)),$I$3+1,100)","v":"'='Section B. Local Agency Capacit'!$D$17"},{"$f":" IF(ISBLANK(M2B3aVolHoursDonated),\"\",M2B3aVolHoursDonated)","v":12198},"Number","M2B3aVolHoursDonated"]
["B3a1_HoursLI","M2B3a1HoursLI",{"$f":"\"'='\" & MID(CELL(\"address\",INDIRECT(B41)),$I$3+1,100)","v":"'='Section B. Local Agency Capacit'!$D$18"},{"$f":" IF(ISBLANK(M2B3a1HoursLI),\"\",M2B3a1HoursLI)","v":6175},"Number","M2B3a1HoursLI"]
["B4a_ROMATrainers","M2B4aROMATrainers",{"$f":"\"'='\" & MID(CELL(\"address\",INDIRECT(B42)),$I$3+1,100)","v":"'='Section B. Local Agency Capacit'!$D$21"},{"$f":" IF(ISBLANK(M2B4aROMATrainers),\"\",M2B4aROMATrainers)","v":1},"Number","M2B4aROMATrainers"]
["B4b_ROMAImplementers","M2B4bROMAImplementers",{"$f":"\"'='\" & MID(CELL(\"address\",INDIRECT(B43)),$I$3+1,100)","v":"'='Section B. Local Agency Capacit'!$D$22"},{"$f":" IF(ISBLANK(M2B4bROMAImplementers),\"\",M2B4bROMAImplementers)","v":""},"Number","M2B4bROMAImplementers"]
["B4c_CCAP","M2B4cCCAP",{"$f":"\"'='\" & MID(CELL(\"address\",INDIRECT(B44)),$I$3+1,100)","v":"'='Section B. Local Agency Capacit'!$D$23"},{"$f":" IF(ISBLANK(M2B4cCCAP),\"\",M2B4cCCAP)","v":6},"Number","M2B4cCCAP"]
["B4d_Child","M2B4dChild",{"$f":"\"'='\" & MID(CELL(\"address\",INDIRECT(B45)),$I$3+1,100)","v":"'='Section B. Local Agency Capacit'!$D$24"},{"$f":" IF(ISBLANK(M2B4dChild),\"\",M2B4dChild)","v":""},"Number","M2B4dChild"]
["B4e_Family","M2B4eFamily",{"$f":"\"'='\" & MID(CELL(\"address\",INDIRECT(B46)),$I$3+1,100)","v":"'='Section B. Local Agency Capacit'!$D$25"},{"$f":" IF(ISBLANK(M2B4eFamily),\"\",M2B4eFamily)","v":15},"Number","M2B4eFamily"]
["B4f_Pathways","M2B4fPathways",{"$f":"\"'='\" & MID(CELL(\"address\",INDIRECT(B47)),$I$3+1,100)","v":"'='Section B. Local Agency Capacit'!$D$26"},{"$f":" IF(ISBLANK(M2B4fPathways),\"\",M2B4fPathways)","v":""},"Number","M2B4fPathways"]
["B4g_Home","M2B4gHome",{"$f":"\"'='\" & MID(CELL(\"address\",INDIRECT(B48)),$I$3+1,100)","v":"'='Section B. Local Agency Capacit'!$D$27"},{"$f":" IF(ISBLANK(M2B4gHome),\"\",M2B4gHome)","v":2},"Number","M2B4gHome"]
["B4g1_Auditors","M2B4g1Auditors",{"$f":"\"'='\" & MID(CELL(\"address\",INDIRECT(B49)),$I$3+1,100)","v":"'='Section B. Local Agency Capacit'!$D$28"},{"$f":" IF(ISBLANK(M2B4g1Auditors),\"\",M2B4g1Auditors)","v":2},"Number","M2B4g1Auditors"]
["B4g2_Retrofit","M2B4g2Retrofit",{"$f":"\"'='\" & MID(CELL(\"address\",INDIRECT(B50)),$I$3+1,100)","v":"'='Section B. Local Agency Capacit'!$D$29"},{"$f":" IF(ISBLANK(M2B4g2Retrofit),\"\",M2B4g2Retrofit)","v":2},"Number","M2B4g2Retrofit"]
["B4g3_Crew","M2B4g3Crew",{"$f":"\"'='\" & MID(CELL(\"address\",INDIRECT(B51)),$I$3+1,100)","v":"'='Section B. Local Agency Capacit'!$D$30"},{"$f":" IF(ISBLANK(M2B4g3Crew),\"\",M2B4g3Crew)","v":1},"Number","M2B4g3Crew"]
["B4g4_QCI","M2B4g4QCI",{"$f":"\"'='\" & MID(CELL(\"address\",INDIRECT(B52)),$I$3+1,100)","v":"'='Section B. Local Agency Capacit'!$D$31"},{"$f":" IF(ISBLANK(M2B4g4QCI),\"\",M2B4g4QCI)","v":2},"Number","M2B4g4QCI"]
["B4h_LEED","M2B4hLEED",{"$f":"\"'='\" & MID(CELL(\"address\",INDIRECT(B53)),$I$3+1,100)","v":"'='Section B. Local Agency Capacit'!$D$32"},{"$f":" IF(ISBLANK(M2B4hLEED),\"\",M2B4hLEED)","v":""},"Number","M2B4hLEED"]
["B4i_BPI","M2B4iBPI",{"$f":"\"'='\" & MID(CELL(\"address\",INDIRECT(B54)),$I$3+1,100)","v":"'='Section B. Local Agency Capacit'!$D$33"},{"$f":" IF(ISBLANK(M2B4iBPI),\"\",M2B4iBPI)","v":2},"Number","M2B4iBPI"]
["B4j_CLASS","M2B4jCLASS",{"$f":"\"'='\" & MID(CELL(\"address\",INDIRECT(B55)),$I$3+1,100)","v":"'='Section B. Local Agency Capacit'!$D$34"},{"$f":" IF(ISBLANK(M2B4jCLASS),\"\",M2B4jCLASS)","v":""},"Number","M2B4jCLASS"]
["B4k_HQS","M2B4kHQS",{"$f":"\"'='\" & MID(CELL(\"address\",INDIRECT(B56)),$I$3+1,100)","v":"'='Section B. Local Agency Capacit'!$D$35"},{"$f":" IF(ISBLANK(M2B4kHQS),\"\",M2B4kHQS)","v":""},"Number","M2B4kHQS"]
["B4l_AICP","M2B4lAICP",{"$f":"\"'='\" & MID(CELL(\"address\",INDIRECT(B57)),$I$3+1,100)","v":"'='Section B. Local Agency Capacit'!$D$36"},{"$f":" IF(ISBLANK(M2B4lAICP),\"\",M2B4lAICP)","v":""},"Number","M2B4lAICP"]
["B4m_Other","M2B4mOther",{"$f":"\"'='\" & MID(CELL(\"address\",INDIRECT(B58)),$I$3+1,100)","v":"'='Section B. Local Agency Capacit'!$D$37"},{"$f":" IF(ISBLANK(M2B4mOther),\"\",M2B4mOther)","v":""},"Number","M2B4mOther"]
["B4m_Specify","M2B4mSpecify",{"$f":"\"'='\" & MID(CELL(\"address\",INDIRECT(B59)),$I$3+1,100)","v":"'='Section B. Local Agency Capacit'!$C$39"},{"$f":" IF(ISBLANK(M2B4mSpecify),\"\",M2B4mSpecify)","v":""},"Text","M2B4mSpecify"]
["B5a_NonProfit","M2B5aNonProfit",{"$f":"\"'='\" & MID(CELL(\"address\",INDIRECT(B60)),$I$3+1,100)","v":"'='Section B. Local Agency Capacit'!$D$43"},{"$f":" IF(ISBLANK(M2B5aNonProfit),\"\",M2B5aNonProfit)","v":13},"Number","M2B5aNonProfit"]
["B5b_Faith","M2B5bFaith",{"$f":"\"'='\" & MID(CELL(\"address\",INDIRECT(B61)),$I$3+1,100)","v":"'='Section B. Local Agency Capacit'!$D$44"},{"$f":" IF(ISBLANK(M2B5bFaith),\"\",M2B5bFaith)","v":7},"Number","M2B5bFaith"]
["B5c_Local","M2B5cLocal",{"$f":"\"'='\" & MID(CELL(\"address\",INDIRECT(B62)),$I$3+1,100)","v":"'='Section B. Local Agency Capacit'!$D$45"},{"$f":" IF(ISBLANK(M2B5cLocal),\"\",M2B5cLocal)","v":4},"Number","M2B5cLocal"]
["B5d_State","M2B5dState",{"$f":"\"'='\" & MID(CELL(\"address\",INDIRECT(B63)),$I$3+1,100)","v":"'='Section B. Local Agency Capacit'!$D$46"},{"$f":" IF(ISBLANK(M2B5dState),\"\",M2B5dState)","v":5},"Number","M2B5dState"]
["B5e_Federal","M2B5eFederal",{"$f":"\"'='\" & MID(CELL(\"address\",INDIRECT(B64)),$I$3+1,100)","v":"'='Section B. Local Agency Capacit'!$D$47"},{"$f":" IF(ISBLANK(M2B5eFederal),\"\",M2B5eFederal)","v":2},"Number","M2B5eFederal"]
["B5f_ForProfit","M2B5fForProfit",{"$f":"\"'='\" & MID(CELL(\"address\",INDIRECT(B65)),$I$3+1,100)","v":"'='Section B. Local Agency Capacit'!$D$48"},{"$f":" IF(ISBLANK(M2B5fForProfit),\"\",M2B5fForProfit)","v":23},"Number","M2B5fForProfit"]
["B5g_Consortiums","M2B5gConsortiums",{"$f":"\"'='\" & MID(CELL(\"address\",INDIRECT(B66)),$I$3+1,100)","v":"'='Section B. Local Agency Capacit'!$D$49"},{"$f":" IF(ISBLANK(M2B5gConsortiums),\"\",M2B5gConsortiums)","v":3},"Number","M2B5gConsortiums"]
["B5h_Schools","M2B5hSchools",{"$f":"\"'='\" & MID(CELL(\"address\",INDIRECT(B67)),$I$3+1,100)","v":"'='Section B. Local Agency Capacit'!$D$50"},{"$f":" IF(ISBLANK(M2B5hSchools),\"\",M2B5hSchools)","v":4},"Number","M2B5hSchools"]
["B5i_PostSecondary","M2B5iPostSecondary",{"$f":"\"'='\" & MID(CELL(\"address\",INDIRECT(B68)),$I$3+1,100)","v":"'='Section B. Local Agency Capacit'!$D$51"},{"$f":" IF(ISBLANK(M2B5iPostSecondary),\"\",M2B5iPostSecondary)","v":1},"Number","M2B5iPostSecondary"]
["B5j_Banks","M2B5jBanks",{"$f":"\"'='\" & MID(CELL(\"address\",INDIRECT(B69)),$I$3+1,100)","v":"'='Section B. Local Agency Capacit'!$D$52"},{"$f":" IF(ISBLANK(M2B5jBanks),\"\",M2B5jBanks)","v":5},"Number","M2B5jBanks"]
["B5k_Health","M2B5kHealth",{"$f":"\"'='\" & MID(CELL(\"address\",INDIRECT(B70)),$I$3+1,100)","v":"'='Section B. Local Agency Capacit'!$D$53"},{"$f":" IF(ISBLANK(M2B5kHealth),\"\",M2B5kHealth)","v":4},"Number","M2B5kHealth"]
["B5l_Statewide","M2B5lStatewide",{"$f":"\"'='\" & MID(CELL(\"address\",INDIRECT(B71)),$I$3+1,100)","v":"'='Section B. Local Agency Capacit'!$D$54"},{"$f":" IF(ISBLANK(M2B5lStatewide),\"\",M2B5lStatewide)","v":5},"Number","M2B5lStatewide"]
["B_Comments","M2BComments",{"$f":"\"'='\" & MID(CELL(\"address\",INDIRECT(B72)),$I$3+1,100)","v":"'='Section B. Local Agency Capacit'!$C$58"},{"$f":" IF(ISBLANK(M2BComments),\"\",M2BComments)","v":"\n"},"Memo","M2BComments",5000]
["C.2","M2C2AmtAllocated",{"$f":"\"'='\" & MID(CELL(\"address\",INDIRECT(B73)),$I$3+1,100)","v":"'='Section C. Local CSBG Resources'!$K$14"},{"$f":" IF(ISBLANK(M2C2AmtAllocated),\"\",M2C2AmtAllocated)","v":216854},"Number","M2C2AmtAllocated"]
["C.3a","M2C3aDOEWx",{"$f":"\"'='\" & MID(CELL(\"address\",INDIRECT(B74)),$I$3+1,100)","v":"'='Section C. Local CSBG Resources'!$K$19"},{"$f":" IF(ISBLANK(M2C3aDOEWx),\"\",M2C3aDOEWx)","v":179606},"Number","M2C3aDOEWx"]
["C.3b.1","M2C3b1LIHEAPAssist",{"$f":"\"'='\" & MID(CELL(\"address\",INDIRECT(B75)),$I$3+1,100)","v":"'='Section C. Local CSBG Resources'!$K$21"},{"$f":" IF(ISBLANK(M2C3b1LIHEAPAssist),\"\",M2C3b1LIHEAPAssist)","v":568878},"Number","M2C3b1LIHEAPAssist"]
["C.3b.2","M2C3b2LIHEAPWx",{"$f":"\"'='\" & MID(CELL(\"address\",INDIRECT(B76)),$I$3+1,100)","v":"'='Section C. Local CSBG Resources'!$K$22"},{"$f":" IF(ISBLANK(M2C3b2LIHEAPWx),\"\",M2C3b2LIHEAPWx)","v":325756},"Number","M2C3b2LIHEAPWx"]
["C.3b.3","M2C3b3HeadStart",{"$f":"\"'='\" & MID(CELL(\"address\",INDIRECT(B77)),$I$3+1,100)","v":"'='Section C. Local CSBG Resources'!$K$23"},{"$f":" IF(ISBLANK(M2C3b3HeadStart),\"\",M2C3b3HeadStart)","v":""},"Number","M2C3b3HeadStart"]
["C.3b.4","M2C3b4EarlyHeadStart",{"$f":"\"'='\" & MID(CELL(\"address\",INDIRECT(B78)),$I$3+1,100)","v":"'='Section C. Local CSBG Resources'!$K$24"},{"$f":" IF(ISBLANK(M2C3b4EarlyHeadStart),\"\",M2C3b4EarlyHeadStart)","v":""},"Number","M2C3b4EarlyHeadStart"]
["C.3b.5","M2C3b5OlderAmericans",{"$f":"\"'='\" & MID(CELL(\"address\",INDIRECT(B79)),$I$3+1,100)","v":"'='Section C. Local CSBG Resources'!$K$25"},{"$f":" IF(ISBLANK(M2C3b5OlderAmericans),\"\",M2C3b5OlderAmericans)","v":""},"Number","M2C3b5OlderAmericans"]
["C.3b.6","M2C3b6SSBG",{"$f":"\"'='\" & MID(CELL(\"address\",INDIRECT(B80)),$I$3+1,100)","v":"'='Section C. Local CSBG Resources'!$K$26"},{"$f":" IF(ISBLANK(M2C3b6SSBG),\"\",M2C3b6SSBG)","v":31300},"Number","M2C3b6SSBG"]
["C.3b.7","M2C3b7MedicareMedicaid",{"$f":"\"'='\" & MID(CELL(\"address\",INDIRECT(B81)),$I$3+1,100)","v":"'='Section C. Local CSBG Resources'!$K$27"},{"$f":" IF(ISBLANK(M2C3b7MedicareMedicaid),\"\",M2C3b7MedicareMedicaid)","v":""},"Number","M2C3b7MedicareMedicaid"]
["C.3b.8","M2C3b8AFI",{"$f":"\"'='\" & MID(CELL(\"address\",INDIRECT(B82)),$I$3+1,100)","v":"'='Section C. Local CSBG Resources'!$K$28"},{"$f":" IF(ISBLANK(M2C3b8AFI),\"\",M2C3b8AFI)","v":""},"Number","M2C3b8AFI"]
["C.3b.9","M2C3b9TANF",{"$f":"\"'='\" & MID(CELL(\"address\",INDIRECT(B83)),$I$3+1,100)","v":"'='Section C. Local CSBG Resources'!$K$29"},{"$f":" IF(ISBLANK(M2C3b9TANF),\"\",M2C3b9TANF)","v":366469},"Number","M2C3b9TANF"]
["C.3b.10","M2C3b10CCDBG",{"$f":"\"'='\" & MID(CELL(\"address\",INDIRECT(B84)),$I$3+1,100)","v":"'='Section C. Local CSBG Resources'!$K$30"},{"$f":" IF(ISBLANK(M2C3b10CCDBG),\"\",M2C3b10CCDBG)","v":""},"Number","M2C3b10CCDBG"]
["C.3b.11","M2C3b11CED",{"$f":"\"'='\" & MID(CELL(\"address\",INDIRECT(B85)),$I$3+1,100)","v":"'='Section C. Local CSBG Resources'!$K$31"},{"$f":" IF(ISBLANK(M2C3b11CED),\"\",M2C3b11CED)","v":""},"Number","M2C3b11CED"]
["C.3b.12.i.oth","M2C3b12iOtherHHSName",{"$f":"\"'='\" & MID(CELL(\"address\",INDIRECT(B86)),$I$3+1,100)","v":"'='Section C. Local CSBG Resources'!$F$33"},{"$f":" IF(ISBLANK(M2C3b12iOtherHHSName),\"\",M2C3b12iOtherHHSName)","v":""},"Text","M2C3b12iOtherHHSName"]
["C.3b.12.i.CFDA","M2C3b12iOtherHHSCFDA",{"$f":"\"'='\" & MID(CELL(\"address\",INDIRECT(B87)),$I$3+1,100)","v":"'='Section C. Local CSBG Resources'!$I$33"},{"$f":" IF(ISBLANK(M2C3b12iOtherHHSCFDA),\"\",M2C3b12iOtherHHSCFDA)","v":""},"Text","M2C3b12iOtherHHSCFDA"]
["C.3b.12.i","M2C3b12iOtherHHSDollar",{"$f":"\"'='\" & MID(CELL(\"address\",INDIRECT(B88)),$I$3+1,100)","v":"'='Section C. Local CSBG Resources'!$K$33"},{"$f":" IF(ISBLANK(M2C3b12iOtherHHSDollar),\"\",M2C3b12iOtherHHSDollar)","v":""},"Number","M2C3b12iOtherHHSDollar"]
["C.3b.12.ii.oth","M2C3b12iiOtherHHSName",{"$f":"\"'='\" & MID(CELL(\"address\",INDIRECT(B89)),$I$3+1,100)","v":"'='Section C. Local CSBG Resources'!$F$34"},{"$f":" IF(ISBLANK(M2C3b12iiOtherHHSName),\"\",M2C3b12iiOtherHHSName)","v":""},"Text","M2C3b12iiOtherHHSName"]
["C.3b.12.ii.CFDA","M2C3b12iiOtherHHSCFDA",{"$f":"\"'='\" & MID(CELL(\"address\",INDIRECT(B90)),$I$3+1,100)","v":"'='Section C. Local CSBG Resources'!$I$34"},{"$f":" IF(ISBLANK(M2C3b12iiOtherHHSCFDA),\"\",M2C3b12iiOtherHHSCFDA)","v":""},"Text","M2C3b12iiOtherHHSCFDA"]
["C.3b.12.ii","M2C3b12iiOtherHHSDollar",{"$f":"\"'='\" & MID(CELL(\"address\",INDIRECT(B91)),$I$3+1,100)","v":"'='Section C. Local CSBG Resources'!$K$34"},{"$f":" IF(ISBLANK(M2C3b12iiOtherHHSDollar),\"\",M2C3b12iiOtherHHSDollar)","v":""},"Number","M2C3b12iiOtherHHSDollar"]
["C.3b.12.iii.oth","M2C3b12iiiOtherHHSName",{"$f":"\"'='\" & MID(CELL(\"address\",INDIRECT(B92)),$I$3+1,100)","v":"'='Section C. Local CSBG Resources'!$F$35"},{"$f":" IF(ISBLANK(M2C3b12iiiOtherHHSName),\"\",M2C3b12iiiOtherHHSName)","v":""},"Text","M2C3b12iiiOtherHHSName"]
["C.3b.12.iii.CFDA","M2C3b12iiiOtherHHSCFDA",{"$f":"\"'='\" & MID(CELL(\"address\",INDIRECT(B93)),$I$3+1,100)","v":"'='Section C. Local CSBG Resources'!$I$35"},{"$f":" IF(ISBLANK(M2C3b12iiiOtherHHSCFDA),\"\",M2C3b12iiiOtherHHSCFDA)","v":""},"Text","M2C3b12iiiOtherHHSCFDA"]
["C.3b.12.iii","M2C3b12iiiOtherHHSDollar",{"$f":"\"'='\" & MID(CELL(\"address\",INDIRECT(B94)),$I$3+1,100)","v":"'='Section C. Local CSBG Resources'!$K$35"},{"$f":" IF(ISBLANK(M2C3b12iiiOtherHHSDollar),\"\",M2C3b12iiiOtherHHSDollar)","v":""},"Number","M2C3b12iiiOtherHHSDollar"]
["C.3b.12.iv.oth","M2C3b12ivOtherHHSName",{"$f":"\"'='\" & MID(CELL(\"address\",INDIRECT(B95)),$I$3+1,100)","v":"'='Section C. Local CSBG Resources'!$F$36"},{"$f":" IF(ISBLANK(M2C3b12ivOtherHHSName),\"\",M2C3b12ivOtherHHSName)","v":""},"Text","M2C3b12ivOtherHHSName"]
["C.3b.12.iv.CFDA","M2C3b12ivOtherHHSCFDA",{"$f":"\"'='\" & MID(CELL(\"address\",INDIRECT(B96)),$I$3+1,100)","v":"'='Section C. Local CSBG Resources'!$I$36"},{"$f":" IF(ISBLANK(M2C3b12ivOtherHHSCFDA),\"\",M2C3b12ivOtherHHSCFDA)","v":""},"Text","M2C3b12ivOtherHHSCFDA"]
["C.3b.12.iv","M2C3b12ivOtherHHSDollar",{"$f":"\"'='\" & MID(CELL(\"address\",INDIRECT(B97)),$I$3+1,100)","v":"'='Section C. Local CSBG Resources'!$K$36"},{"$f":" IF(ISBLANK(M2C3b12ivOtherHHSDollar),\"\",M2C3b12ivOtherHHSDollar)","v":""},"Number","M2C3b12ivOtherHHSDollar"]
["C.3b.12.v.oth","M2C3b12vOtherHHSName",{"$f":"\"'='\" & MID(CELL(\"address\",INDIRECT(B98)),$I$3+1,100)","v":"'='Section C. Local CSBG Resources'!$F$37"},"","Text",null,null,"M2C3b12vOtherHHSName"]
["C.3b.12.v.CFDA","M2C3b12vOtherHHSCFDA",{"$f":"\"'='\" & MID(CELL(\"address\",INDIRECT(B99)),$I$3+1,100)","v":"'='Section C. Local CSBG Resources'!$I$37"},"","Text",null,null,"M2C3b12vOtherHHSCFDA"]
["C.3b.12.v","M2C3b12vOtherHHSDollar",{"$f":"\"'='\" & MID(CELL(\"address\",INDIRECT(B100)),$I$3+1,100)","v":"'='Section C. Local CSBG Resources'!$K$37"},"","Number",null,null,"M2C3b12vOtherHHSDollar"]
["C.3b.12.vi.oth","M2C3b12viOtherHHSName",{"$f":"\"'='\" & MID(CELL(\"address\",INDIRECT(B101)),$I$3+1,100)","v":"'='Section C. Local CSBG Resources'!$F$38"},"","Text",null,null,"M2C3b12viOtherHHSName"]
["C.3b.12.vi.CFDA","M2C3b12viOtherHHSCFDA",{"$f":"\"'='\" & MID(CELL(\"address\",INDIRECT(B102)),$I$3+1,100)","v":"'='Section C. Local CSBG Resources'!$I$38"},"","Text",null,null,"M2C3b12viOtherHHSCFDA"]
["C.3b.12.vi","M2C3b12viOtherHHSDollar",{"$f":"\"'='\" & MID(CELL(\"address\",INDIRECT(B103)),$I$3+1,100)","v":"'='Section C. Local CSBG Resources'!$K$38"},"","Number",null,null,"M2C3b12viOtherHHSDollar"]
["C.3b.12.vii.oth","M2C3b12viiOtherHHSName",{"$f":"\"'='\" & MID(CELL(\"address\",INDIRECT(B104)),$I$3+1,100)","v":"'='Section C. Local CSBG Resources'!$F$39"},"","Text",null,null,"M2C3b12viiOtherHHSName"]
["C.3b.12.vii.CFDA","M2C3b12viiOtherHHSCFDA",{"$f":"\"'='\" & MID(CELL(\"address\",INDIRECT(B105)),$I$3+1,100)","v":"'='Section C. Local CSBG Resources'!$I$39"},"","Text",null,null,"M2C3b12viiOtherHHSCFDA"]
["C.3b.12.vii","M2C3b12viiOtherHHSDollar",{"$f":"\"'='\" & MID(CELL(\"address\",INDIRECT(B106)),$I$3+1,100)","v":"'='Section C. Local CSBG Resources'!$K$39"},"","Number",null,null,"M2C3b12viiOtherHHSDollar"]
["C.3b.12.viii.oth","M2C3b12viiiOtherHHSName",{"$f":"\"'='\" & MID(CELL(\"address\",INDIRECT(B107)),$I$3+1,100)","v":"'='Section C. Local CSBG Resources'!$F$40"},"","Text",null,null,"M2C3b12viiiOtherHHSName"]
["C.3b.12.viii.CFDA","M2C3b12viiiOtherHHSCFDA",{"$f":"\"'='\" & MID(CELL(\"address\",INDIRECT(B108)),$I$3+1,100)","v":"'='Section C. Local CSBG Resources'!$I$40"},"","Text",null,null,"M2C3b12viiiOtherHHSCFDA"]
["C.3b.12.viii","M2C3b12viiiOtherHHSDollar",{"$f":"\"'='\" & MID(CELL(\"address\",INDIRECT(B109)),$I$3+1,100)","v":"'='Section C. Local CSBG Resources'!$K$40"},"","Number",null,null,"M2C3b12viiiOtherHHSDollar"]
["C.3b.12.ix.oth","M2C3b12ixOtherHHSName",{"$f":"\"'='\" & MID(CELL(\"address\",INDIRECT(B110)),$I$3+1,100)","v":"'='Section C. Local CSBG Resources'!$F$41"},"","Text",null,null,"M2C3b12ixOtherHHSName"]
["C.3b.12.ix.CFDA","M2C3b12ixOtherHHSCFDA",{"$f":"\"'='\" & MID(CELL(\"address\",INDIRECT(B111)),$I$3+1,100)","v":"'='Section C. Local CSBG Resources'!$I$41"},"","Text",null,null,"M2C3b12ixOtherHHSCFDA"]
["C.3b.12.ix","M2C3b12ixOtherHHSDollar",{"$f":"\"'='\" & MID(CELL(\"address\",INDIRECT(B112)),$I$3+1,100)","v":"'='Section C. Local CSBG Resources'!$K$41"},"","Number",null,null,"M2C3b12ixOtherHHSDollar"]
["C.3b.12.x.oth","M2C3b12xOtherHHSName",{"$f":"\"'='\" & MID(CELL(\"address\",INDIRECT(B113)),$I$3+1,100)","v":"'='Section C. Local CSBG Resources'!$F$42"},"","Text",null,null,"M2C3b12xOtherHHSName"]
["C.3b.12.x.CFDA","M2C3b12xOtherHHSCFDA",{"$f":"\"'='\" & MID(CELL(\"address\",INDIRECT(B114)),$I$3+1,100)","v":"'='Section C. Local CSBG Resources'!$I$42"},"","Text",null,null,"M2C3b12xOtherHHSCFDA"]
["C.3b.12.x","M2C3b12xOtherHHSDollar",{"$f":"\"'='\" & MID(CELL(\"address\",INDIRECT(B115)),$I$3+1,100)","v":"'='Section C. Local CSBG Resources'!$K$42"},"","Number",null,null,"M2C3b12xOtherHHSDollar"]
["C.3b.13","M2C3b13TotalHHS",{"$f":"\"'='\" & MID(CELL(\"address\",INDIRECT(B116)),$I$3+1,100)","v":"'='Section C. Local CSBG Resources'!$K$44"},{"$f":" IF(ISBLANK(M2C3b13TotalHHS),\"\",M2C3b13TotalHHS)","v":0},"Number","M2C3b13TotalHHS"]
["C.3c.1","M2C3c1WIC",{"$f":"\"'='\" & MID(CELL(\"address\",INDIRECT(B117)),$I$3+1,100)","v":"'='Section C. Local CSBG Resources'!$K$46"},{"$f":" IF(ISBLANK(M2C3c1WIC),\"\",M2C3c1WIC)","v":""},"Number","M2C3c1WIC"]
["C.3c.2","M2C3c2USDANonFood",{"$f":"\"'='\" & MID(CELL(\"address\",INDIRECT(B118)),$I$3+1,100)","v":"'='Section C. Local CSBG Resources'!$K$47"},{"$f":" IF(ISBLANK(M2C3c2USDANonFood),\"\",M2C3c2USDANonFood)","v":""},"Number","M2C3c2USDANonFood"]
["C.3c.3","M2C3c3USDAFood",{"$f":"\"'='\" & MID(CELL(\"address\",INDIRECT(B119)),$I$3+1,100)","v":"'='Section C. Local CSBG Resources'!$K$48"},{"$f":" IF(ISBLANK(M2C3c3USDAFood),\"\",M2C3c3USDAFood)","v":45337},"Number","M2C3c3USDAFood"]
["C.3d.1","M2C3d1CDBG",{"$f":"\"'='\" & MID(CELL(\"address\",INDIRECT(B120)),$I$3+1,100)","v":"'='Section C. Local CSBG Resources'!$K$50"},{"$f":" IF(ISBLANK(M2C3d1CDBG),\"\",M2C3d1CDBG)","v":789937},"Number","M2C3d1CDBG"]
["C.3d.2","M2C3d2Sect8",{"$f":"\"'='\" & MID(CELL(\"address\",INDIRECT(B121)),$I$3+1,100)","v":"'='Section C. Local CSBG Resources'!$K$51"},{"$f":" IF(ISBLANK(M2C3d2Sect8),\"\",M2C3d2Sect8)","v":""},"Number","M2C3d2Sect8"]
["C.3d.3","M2C3d3Sect202",{"$f":"\"'='\" & MID(CELL(\"address\",INDIRECT(B122)),$I$3+1,100)","v":"'='Section C. Local CSBG Resources'!$K$52"},{"$f":" IF(ISBLANK(M2C3d3Sect202),\"\",M2C3d3Sect202)","v":""},"Number","M2C3d3Sect202"]
["C.3d.4","M2C3d4HOMETBRA",{"$f":"\"'='\" & MID(CELL(\"address\",INDIRECT(B123)),$I$3+1,100)","v":"'='Section C. Local CSBG Resources'!$K$53"},{"$f":" IF(ISBLANK(M2C3d4HOMETBRA),\"\",M2C3d4HOMETBRA)","v":26733},"Number","M2C3d4HOMETBRA"]
["C.3d.5","M2C3d5H4H",{"$f":"\"'='\" & MID(CELL(\"address\",INDIRECT(B124)),$I$3+1,100)","v":"'='Section C. Local CSBG Resources'!$K$54"},{"$f":" IF(ISBLANK(M2C3d5H4H),\"\",M2C3d5H4H)","v":""},"Number","M2C3d5H4H"]
["C.3d.6","M2C3d6ESG",{"$f":"\"'='\" & MID(CELL(\"address\",INDIRECT(B125)),$I$3+1,100)","v":"'='Section C. Local CSBG Resources'!$K$55"},{"$f":" IF(ISBLANK(M2C3d6ESG),\"\",M2C3d6ESG)","v":447225},"Number","M2C3d6ESG"]
["C.3d.7","M2C3d7ContinuumCare",{"$f":"\"'='\" & MID(CELL(\"address\",INDIRECT(B126)),$I$3+1,100)","v":"'='Section C. Local CSBG Resources'!$K$56"},{"$f":" IF(ISBLANK(M2C3d7ContinuumCare),\"\",M2C3d7ContinuumCare)","v":""},"Number","M2C3d7ContinuumCare"]
["C.3d.8","M2C3d8TotalHUD",{"$f":"\"'='\" & MID(CELL(\"address\",INDIRECT(B127)),$I$3+1,100)","v":"'='Section C. Local CSBG Resources'!$K$57"},{"$f":" IF(ISBLANK(M2C3d8TotalHUD),\"\",M2C3d8TotalHUD)","v":""},"Number","M2C3d8TotalHUD"]
["C.3e.1","M2C3eWIOA",{"$f":"\"'='\" & MID(CELL(\"address\",INDIRECT(B128)),$I$3+1,100)","v":"'='Section C. Local CSBG Resources'!$K$59"},{"$f":" IF(ISBLANK(M2C3eWIOA),\"\",M2C3eWIOA)","v":""},"Number","M2C3eWIOA"]
["C.3e.2","M2C3eEmploymentTraining",{"$f":"\"'='\" & MID(CELL(\"address\",INDIRECT(B129)),$I$3+1,100)","v":"'='Section C. Local CSBG Resources'!$K$60"},{"$f":" IF(ISBLANK(M2C3eEmploymentTraining),\"\",M2C3eEmploymentTraining)","v":""},"Number","M2C3eEmploymentTraining"]
["C.3e.3","M2C3eTotalDOL",{"$f":"\"'='\" & MID(CELL(\"address\",INDIRECT(B130)),$I$3+1,100)","v":"'='Section C. Local CSBG Resources'!$K$61"},{"$f":" IF(ISBLANK(M2C3eTotalDOL),\"\",M2C3eTotalDOL)","v":""},"Number","M2C3eTotalDOL"]
["C.3f","M2C3fCNCS",{"$f":"\"'='\" & MID(CELL(\"address\",INDIRECT(B131)),$I$3+1,100)","v":"'='Section C. Local CSBG Resources'!$K$62"},{"$f":" IF(ISBLANK(M2C3fCNCS),\"\",M2C3fCNCS)","v":""},"Number","M2C3fCNCS"]
["C.3g","M2C3gFEMA",{"$f":"\"'='\" & MID(CELL(\"address\",INDIRECT(B132)),$I$3+1,100)","v":"'='Section C. Local CSBG Resources'!$K$63"},{"$f":" IF(ISBLANK(M2C3gFEMA),\"\",M2C3gFEMA)","v":""},"Number","M2C3gFEMA"]
["C.3h","M2C3hTransportation",{"$f":"\"'='\" & MID(CELL(\"address\",INDIRECT(B133)),$I$3+1,100)","v":"'='Section C. Local CSBG Resources'!$K$64"},{"$f":" IF(ISBLANK(M2C3hTransportation),\"\",M2C3hTransportation)","v":""},"Number","M2C3hTransportation"]
["C.3i","M2C3iEducation",{"$f":"\"'='\" & MID(CELL(\"address\",INDIRECT(B134)),$I$3+1,100)","v":"'='Section C. Local CSBG Resources'!$K$65"},{"$f":" IF(ISBLANK(M2C3iEducation),\"\",M2C3iEducation)","v":""},"Number","M2C3iEducation"]
["C.3j","M2C3jJustice",{"$f":"\"'='\" & MID(CELL(\"address\",INDIRECT(B135)),$I$3+1,100)","v":"'='Section C. Local CSBG Resources'!$K$66"},{"$f":" IF(ISBLANK(M2C3jJustice),\"\",M2C3jJustice)","v":""},"Number","M2C3jJustice"]
["C.3k","M2C3kTreasury",{"$f":"\"'='\" & MID(CELL(\"address\",INDIRECT(B136)),$I$3+1,100)","v":"'='Section C. Local CSBG Resources'!$K$67"},{"$f":" IF(ISBLANK(M2C3kTreasury),\"\",M2C3kTreasury)","v":181302},"Number","M2C3kTreasury"]
["C.3l.i.oth","M2C3liOtherFedName",{"$f":"\"'='\" & MID(CELL(\"address\",INDIRECT(B137)),$I$3+1,100)","v":"'='Section C. Local CSBG Resources'!$F$69"},{"$f":" IF(ISBLANK(M2C3liOtherFedName),\"\",M2C3liOtherFedName)","v":"EDA Planning"},"Text","M2C3liOtherFedName"]
["C.3l.i.CFDA","M2C3liOtherFedCFDA",{"$f":"\"'='\" & MID(CELL(\"address\",INDIRECT(B138)),$I$3+1,100)","v":"'='Section C. Local CSBG Resources'!$I$69"},{"$f":" IF(ISBLANK(M2C3liOtherFedCFDA),\"\",M2C3liOtherFedCFDA)","v":"11.307"},"Text","M2C3liOtherFedCFDA"]
["C.3l.i","M2C3liOtherFedDollar",{"$f":"\"'='\" & MID(CELL(\"address\",INDIRECT(B139)),$I$3+1,100)","v":"'='Section C. Local CSBG Resources'!$K$69"},{"$f":" IF(ISBLANK(M2C3liOtherFedDollar),\"\",M2C3liOtherFedDollar)","v":260000},"Number","M2C3liOtherFedDollar"]
["C.3l.ii.oth","M2C3liiOtherFedName",{"$f":"\"'='\" & MID(CELL(\"address\",INDIRECT(B140)),$I$3+1,100)","v":"'='Section C. Local CSBG Resources'!$F$70"},{"$f":" IF(ISBLANK(M2C3liiOtherFedName),\"\",M2C3liiOtherFedName)","v":""},"Text","M2C3liiOtherFedName"]
["C.3l.ii.CFDA","M2C3liiOtherFedCFDA",{"$f":"\"'='\" & MID(CELL(\"address\",INDIRECT(B141)),$I$3+1,100)","v":"'='Section C. Local CSBG Resources'!$I$70"},{"$f":" IF(ISBLANK(M2C3liiOtherFedCFDA),\"\",M2C3liiOtherFedCFDA)","v":""},"Text","M2C3liiOtherFedCFDA"]
["C.3l.ii","M2C3liiOtherFedDollar",{"$f":"\"'='\" & MID(CELL(\"address\",INDIRECT(B142)),$I$3+1,100)","v":"'='Section C. Local CSBG Resources'!$K$70"},{"$f":" IF(ISBLANK(M2C3liiOtherFedDollar),\"\",M2C3liiOtherFedDollar)","v":""},"Number","M2C3liiOtherFedDollar"]
["C.3l.iii.oth","M2C3liiiOtherFedName",{"$f":"\"'='\" & MID(CELL(\"address\",INDIRECT(B143)),$I$3+1,100)","v":"'='Section C. Local CSBG Resources'!$F$71"},{"$f":" IF(ISBLANK(M2C3liiiOtherFedName),\"\",M2C3liiiOtherFedName)","v":""},"Text","M2C3liiiOtherFedName"]
["C.3l.iii.CFDA","M2C3liiiOtherFedCFDA",{"$f":"\"'='\" & MID(CELL(\"address\",INDIRECT(B144)),$I$3+1,100)","v":"'='Section C. Local CSBG Resources'!$I$71"},{"$f":" IF(ISBLANK(M2C3liiiOtherFedCFDA),\"\",M2C3liiiOtherFedCFDA)","v":""},"Text","M2C3liiiOtherFedCFDA"]
["C.3l.iii","M2C3liiiOtherFedDollar",{"$f":"\"'='\" & MID(CELL(\"address\",INDIRECT(B145)),$I$3+1,100)","v":"'='Section C. Local CSBG Resources'!$K$71"},{"$f":" IF(ISBLANK(M2C3liiiOtherFedDollar),\"\",M2C3liiiOtherFedDollar)","v":""},"Number","M2C3liiiOtherFedDollar"]
["C.3l.iv.oth","M2C3livOtherFedName",{"$f":"\"'='\" & MID(CELL(\"address\",INDIRECT(B146)),$I$3+1,100)","v":"'='Section C. Local CSBG Resources'!$F$72"},{"$f":" IF(ISBLANK(M2C3livOtherFedName),\"\",M2C3livOtherFedName)","v":""},"Text","M2C3livOtherFedName"]
["C.3l.iv.CFDA","M2C3livOtherFedCFDA",{"$f":"\"'='\" & MID(CELL(\"address\",INDIRECT(B147)),$I$3+1,100)","v":"'='Section C. Local CSBG Resources'!$I$72"},{"$f":" IF(ISBLANK(M2C3livOtherFedCFDA),\"\",M2C3livOtherFedCFDA)","v":""},"Text","M2C3livOtherFedCFDA"]
["C.3l.iv","M2C3livOtherFedDollar",{"$f":"\"'='\" & MID(CELL(\"address\",INDIRECT(B148)),$I$3+1,100)","v":"'='Section C. Local CSBG Resources'!$K$72"},{"$f":" IF(ISBLANK(M2C3livOtherFedDollar),\"\",M2C3livOtherFedDollar)","v":""},"Number","M2C3livOtherFedDollar"]
["C.3l.v.oth","M2C3lvOtherFedName",{"$f":"\"'='\" & MID(CELL(\"address\",INDIRECT(B149)),$I$3+1,100)","v":"'='Section C. Local CSBG Resources'!$F$73"},"","Text",null,null,"M2C3lvOtherFedName"]
["C.3l.v.CFDA","M2C3lvOtherFedCFDA",{"$f":"\"'='\" & MID(CELL(\"address\",INDIRECT(B150)),$I$3+1,100)","v":"'='Section C. Local CSBG Resources'!$I$73"},"","Text",null,null,"M2C3lvOtherFedCFDA"]
["C.3l.v","M2C3lvOtherFedDollar",{"$f":"\"'='\" & MID(CELL(\"address\",INDIRECT(B151)),$I$3+1,100)","v":"'='Section C. Local CSBG Resources'!$K$73"},"","Number",null,null,"M2C3lvOtherFedDollar"]
["C.3l.vi.oth","M2C3lviOtherFedName",{"$f":"\"'='\" & MID(CELL(\"address\",INDIRECT(B152)),$I$3+1,100)","v":"'='Section C. Local CSBG Resources'!$F$74"},"","Text",null,null,"M2C3lviOtherFedName"]
["C.3l.vi.CFDA","M2C3lviOtherFedCFDA",{"$f":"\"'='\" & MID(CELL(\"address\",INDIRECT(B153)),$I$3+1,100)","v":"'='Section C. Local CSBG Resources'!$I$74"},"","Text",null,null,"M2C3lviOtherFedCFDA"]
["C.3l.vi","M2C3lviOtherFedDollar",{"$f":"\"'='\" & MID(CELL(\"address\",INDIRECT(B154)),$I$3+1,100)","v":"'='Section C. Local CSBG Resources'!$K$74"},"","Number",null,null,"M2C3lviOtherFedDollar"]
["C.3l.vii.oth","M2C3lviiOtherFedName",{"$f":"\"'='\" & MID(CELL(\"address\",INDIRECT(B155)),$I$3+1,100)","v":"'='Section C. Local CSBG Resources'!$F$75"},"","Text",null,null,"M2C3lviiOtherFedName"]
["C.3l.vii.CFDA","M2C3lviiOtherFedCFDA",{"$f":"\"'='\" & MID(CELL(\"address\",INDIRECT(B156)),$I$3+1,100)","v":"'='Section C. Local CSBG Resources'!$I$75"},"","Text",null,null,"M2C3lviiOtherFedCFDA"]
["C.3l.vii","M2C3lviiOtherFedDollar",{"$f":"\"'='\" & MID(CELL(\"address\",INDIRECT(B157)),$I$3+1,100)","v":"'='Section C. Local CSBG Resources'!$K$75"},"","Number",null,null,"M2C3lviiOtherFedDollar"]
["C.3l.viii.oth","M2C3lviiiOtherFedName",{"$f":"\"'='\" & MID(CELL(\"address\",INDIRECT(B158)),$I$3+1,100)","v":"'='Section C. Local CSBG Resources'!$F$76"},"","Text",null,null,"M2C3lviiiOtherFedName"]
["C.3l.viii.CFDA","M2C3lviiiOtherFedCFDA",{"$f":"\"'='\" & MID(CELL(\"address\",INDIRECT(B159)),$I$3+1,100)","v":"'='Section C. Local CSBG Resources'!$I$76"},"","Text",null,null,"M2C3lviiiOtherFedCFDA"]
["C.3l.viii","M2C3lviiiOtherFedDollar",{"$f":"\"'='\" & MID(CELL(\"address\",INDIRECT(B160)),$I$3+1,100)","v":"'='Section C. Local CSBG Resources'!$K$76"},"","Number",null,null,"M2C3lviiiOtherFedDollar"]
["C.3l.ix.oth","M2C3lixOtherFedName",{"$f":"\"'='\" & MID(CELL(\"address\",INDIRECT(B161)),$I$3+1,100)","v":"'='Section C. Local CSBG Resources'!$F$77"},"","Text",null,null,"M2C3lixOtherFedName"]
["C.3l.ix.CFDA","M2C3lixOtherFedCFDA",{"$f":"\"'='\" & MID(CELL(\"address\",INDIRECT(B162)),$I$3+1,100)","v":"'='Section C. Local CSBG Resources'!$I$77"},"","Text",null,null,"M2C3lixOtherFedCFDA"]
["C.3l.ix","M2C3lixOtherFedDollar",{"$f":"\"'='\" & MID(CELL(\"address\",INDIRECT(B163)),$I$3+1,100)","v":"'='Section C. Local CSBG Resources'!$K$77"},"","Number",null,null,"M2C3lixOtherFedDollar"]
["C.3l.x.oth","M2C3lxOtherFedName",{"$f":"\"'='\" & MID(CELL(\"address\",INDIRECT(B164)),$I$3+1,100)","v":"'='Section C. Local CSBG Resources'!$F$78"},"","Text",null,null,"M2C3lxOtherFedName"]
["C.3l.x.CFDA","M2C3lxOtherFedCFDA",{"$f":"\"'='\" & MID(CELL(\"address\",INDIRECT(B165)),$I$3+1,100)","v":"'='Section C. Local CSBG Resources'!$I$78"},"","Text",null,null,"M2C3lxOtherFedCFDA"]
["C.3l.x","M2C3lxOtherFedDollar",{"$f":"\"'='\" & MID(CELL(\"address\",INDIRECT(B166)),$I$3+1,100)","v":"'='Section C. Local CSBG Resources'!$K$78"},"","Number",null,null,"M2C3lxOtherFedDollar"]
["C.3m","M2C3mTotalOtherFed",{"$f":"\"'='\" & MID(CELL(\"address\",INDIRECT(B167)),$I$3+1,100)","v":"'='Section C. Local CSBG Resources'!$K$80"},{"$f":" IF(ISBLANK(M2C3mTotalOtherFed),\"\",M2C3mTotalOtherFed)","v":260000},"Number","M2C3mTotalOtherFed"]
["C.3n","M2C3nTotalFedNonCSBG",{"$f":"\"'='\" & MID(CELL(\"address\",INDIRECT(B168)),$I$3+1,100)","v":"'='Section C. Local CSBG Resources'!$K$81"},{"$f":" IF(ISBLANK(M2C3nTotalFedNonCSBG),\"\",M2C3nTotalFedNonCSBG)","v":3222543},"Number","M2C3nTotalFedNonCSBG"]
["C.4a","M2C4aStateCSBG",{"$f":"\"'='\" & MID(CELL(\"address\",INDIRECT(B169)),$I$3+1,100)","v":"'='Section C. Local CSBG Resources'!$K$86"},{"$f":" IF(ISBLANK(M2C4aStateCSBG),\"\",M2C4aStateCSBG)","v":""},"Number","M2C4aStateCSBG"]
["C.4b","M2C4bStateHousing",{"$f":"\"'='\" & MID(CELL(\"address\",INDIRECT(B170)),$I$3+1,100)","v":"'='Section C. Local CSBG Resources'!$K$87"},{"$f":" IF(ISBLANK(M2C4bStateHousing),\"\",M2C4bStateHousing)","v":""},"Number","M2C4bStateHousing"]
["C.4c","M2C4cStateNutrition",{"$f":"\"'='\" & MID(CELL(\"address\",INDIRECT(B171)),$I$3+1,100)","v":"'='Section C. Local CSBG Resources'!$K$88"},{"$f":" IF(ISBLANK(M2C4cStateNutrition),\"\",M2C4cStateNutrition)","v":25568},"Number","M2C4cStateNutrition"]
["C.4d","M2C4dStateEarlyChild",{"$f":"\"'='\" & MID(CELL(\"address\",INDIRECT(B172)),$I$3+1,100)","v":"'='Section C. Local CSBG Resources'!$K$89"},{"$f":" IF(ISBLANK(M2C4dStateEarlyChild),\"\",M2C4dStateEarlyChild)","v":""},"Number","M2C4dStateEarlyChild"]
["C.4e","M2C4eStateEnergy",{"$f":"\"'='\" & MID(CELL(\"address\",INDIRECT(B173)),$I$3+1,100)","v":"'='Section C. Local CSBG Resources'!$K$90"},{"$f":" IF(ISBLANK(M2C4eStateEnergy),\"\",M2C4eStateEnergy)","v":""},"Number","M2C4eStateEnergy"]
["C.4f","M2C4fStateHealth",{"$f":"\"'='\" & MID(CELL(\"address\",INDIRECT(B174)),$I$3+1,100)","v":"'='Section C. Local CSBG Resources'!$K$91"},{"$f":" IF(ISBLANK(M2C4fStateHealth),\"\",M2C4fStateHealth)","v":""},"Number","M2C4fStateHealth"]
["C.4g","M2C4gStateYouthDev",{"$f":"\"'='\" & MID(CELL(\"address\",INDIRECT(B175)),$I$3+1,100)","v":"'='Section C. Local CSBG Resources'!$K$92"},{"$f":" IF(ISBLANK(M2C4gStateYouthDev),\"\",M2C4gStateYouthDev)","v":""},"Number","M2C4gStateYouthDev"]
["C.4h","M2C4hStateEmploymentTraining",{"$f":"\"'='\" & MID(CELL(\"address\",INDIRECT(B176)),$I$3+1,100)","v":"'='Section C. Local CSBG Resources'!$K$93"},{"$f":" IF(ISBLANK(M2C4hStateEmploymentTraining),\"\",M2C4hStateEmploymentTraining)","v":""},"Number","M2C4hStateEmploymentTraining"]
["C.4i","M2C4iStateSenior",{"$f":"\"'='\" & MID(CELL(\"address\",INDIRECT(B177)),$I$3+1,100)","v":"'='Section C. Local CSBG Resources'!$K$94"},{"$f":" IF(ISBLANK(M2C4iStateSenior),\"\",M2C4iStateSenior)","v":264100},"Number","M2C4iStateSenior"]
["C.4j","M2C4jStateTransportation",{"$f":"\"'='\" & MID(CELL(\"address\",INDIRECT(B178)),$I$3+1,100)","v":"'='Section C. Local CSBG Resources'!$K$95"},{"$f":" IF(ISBLANK(M2C4jStateTransportation),\"\",M2C4jStateTransportation)","v":""},"Number","M2C4jStateTransportation"]
["C.4k","M2C4kStateEducation",{"$f":"\"'='\" & MID(CELL(\"address\",INDIRECT(B179)),$I$3+1,100)","v":"'='Section C. Local CSBG Resources'!$K$96"},{"$f":" IF(ISBLANK(M2C4kStateEducation),\"\",M2C4kStateEducation)","v":""},"Number","M2C4kStateEducation"]
["C.4l","M2C4lStateRuralEcon",{"$f":"\"'='\" & MID(CELL(\"address\",INDIRECT(B180)),$I$3+1,100)","v":"'='Section C. Local CSBG Resources'!$K$97"},{"$f":" IF(ISBLANK(M2C4lStateRuralEcon),\"\",M2C4lStateRuralEcon)","v":""},"Number","M2C4lStateRuralEcon"]
["C.4m","M2C4mStateFamilyDev",{"$f":"\"'='\" & MID(CELL(\"address\",INDIRECT(B181)),$I$3+1,100)","v":"'='Section C. Local CSBG Resources'!$K$98"},{"$f":" IF(ISBLANK(M2C4mStateFamilyDev),\"\",M2C4mStateFamilyDev)","v":""},"Number","M2C4mStateFamilyDev"]
["C.4n.i.oth","M2C4niOtherStateName",{"$f":"\"'='\" & MID(CELL(\"address\",INDIRECT(B182)),$I$3+1,100)","v":"'='Section C. Local CSBG Resources'!$F$100"},{"$f":" IF(ISBLANK(M2C4niOtherStateName),\"\",M2C4niOtherStateName)","v":"EITC"},"Text","M2C4niOtherStateName"]
["C.4n.i","M2C4niOtherStateDollar",{"$f":"\"'='\" & MID(CELL(\"address\",INDIRECT(B183)),$I$3+1,100)","v":"'='Section C. Local CSBG Resources'!$K$100"},{"$f":" IF(ISBLANK(M2C4niOtherStateDollar),\"\",M2C4niOtherStateDollar)","v":22750},"Number","M2C4niOtherStateDollar"]
["C.4n.ii.oth","M2C4niiOtherStateName",{"$f":"\"'='\" & MID(CELL(\"address\",INDIRECT(B184)),$I$3+1,100)","v":"'='Section C. Local CSBG Resources'!$F$101"},{"$f":" IF(ISBLANK(M2C4niiOtherStateName),\"\",M2C4niiOtherStateName)","v":""},"Text","M2C4niiOtherStateName"]
["C.4n.ii","M2C4niiOtherStateDollar",{"$f":"\"'='\" & MID(CELL(\"address\",INDIRECT(B185)),$I$3+1,100)","v":"'='Section C. Local CSBG Resources'!$K$101"},{"$f":" IF(ISBLANK(M2C4niiOtherStateDollar),\"\",M2C4niiOtherStateDollar)","v":""},"Number","M2C4niiOtherStateDollar"]
["C.4n.iii.oth","M2C4niiiOtherStateName",{"$f":"\"'='\" & MID(CELL(\"address\",INDIRECT(B186)),$I$3+1,100)","v":"'='Section C. Local CSBG Resources'!$F$102"},{"$f":" IF(ISBLANK(M2C4niiiOtherStateName),\"\",M2C4niiiOtherStateName)","v":""},"Text","M2C4niiiOtherStateName"]
["C.4n.iii","M2C4niiiOtherStateDollar",{"$f":"\"'='\" & MID(CELL(\"address\",INDIRECT(B187)),$I$3+1,100)","v":"'='Section C. Local CSBG Resources'!$K$102"},{"$f":" IF(ISBLANK(M2C4niiiOtherStateDollar),\"\",M2C4niiiOtherStateDollar)","v":""},"Number","M2C4niiiOtherStateDollar"]
["C.4n.iv.oth","M2C4nivOtherStateName",{"$f":"\"'='\" & MID(CELL(\"address\",INDIRECT(B188)),$I$3+1,100)","v":"'='Section C. Local CSBG Resources'!$F$103"},{"$f":" IF(ISBLANK(M2C4nivOtherStateName),\"\",M2C4nivOtherStateName)","v":""},"Text","M2C4nivOtherStateName"]
["C.4n.iv","M2C4nivOtherStateDollar",{"$f":"\"'='\" & MID(CELL(\"address\",INDIRECT(B189)),$I$3+1,100)","v":"'='Section C. Local CSBG Resources'!$K$103"},{"$f":" IF(ISBLANK(M2C4nivOtherStateDollar),\"\",M2C4nivOtherStateDollar)","v":""},"Number","M2C4nivOtherStateDollar"]
["C.4n.v.oth","M2C4nvOtherStateName",{"$f":"\"'='\" & MID(CELL(\"address\",INDIRECT(B190)),$I$3+1,100)","v":"'='Section C. Local CSBG Resources'!$F$104"},"","Text",null,null,"M2C4nvOtherStateName"]
["C.4n.v","M2C4nvOtherStateDollar",{"$f":"\"'='\" & MID(CELL(\"address\",INDIRECT(B191)),$I$3+1,100)","v":"'='Section C. Local CSBG Resources'!$K$104"},"","Number",null,null,"M2C4nvOtherStateDollar"]
["C.4n.vi.oth","M2C4nviOtherStateName",{"$f":"\"'='\" & MID(CELL(\"address\",INDIRECT(B192)),$I$3+1,100)","v":"'='Section C. Local CSBG Resources'!$F$105"},"","Text",null,null,"M2C4nviOtherStateName"]
["C.4n.vi","M2C4nviOtherStateDollar",{"$f":"\"'='\" & MID(CELL(\"address\",INDIRECT(B193)),$I$3+1,100)","v":"'='Section C. Local CSBG Resources'!$K$105"},"","Number",null,null,"M2C4nviOtherStateDollar"]
["C.4n.vii.oth","M2C4nviiOtherStateName",{"$f":"\"'='\" & MID(CELL(\"address\",INDIRECT(B194)),$I$3+1,100)","v":"'='Section C. Local CSBG Resources'!$F$106"},"","Text",null,null,"M2C4nviiOtherStateName"]
["C.4n.vii","M2C4nviiOtherStateDollar",{"$f":"\"'='\" & MID(CELL(\"address\",INDIRECT(B195)),$I$3+1,100)","v":"'='Section C. Local CSBG Resources'!$K$106"},"","Number",null,null,"M2C4nviiOtherStateDollar"]
["C.4n.viii.oth","M2C4nviiiOtherStateName",{"$f":"\"'='\" & MID(CELL(\"address\",INDIRECT(B196)),$I$3+1,100)","v":"'='Section C. Local CSBG Resources'!$F$107"},"","Text",null,null,"M2C4nviiiOtherStateName"]
["C.4n.viii","M2C4nviiiOtherStateDollar",{"$f":"\"'='\" & MID(CELL(\"address\",INDIRECT(B197)),$I$3+1,100)","v":"'='Section C. Local CSBG Resources'!$K$107"},"","Number",null,null,"M2C4nviiiOtherStateDollar"]
["C.4n.ix.oth","M2C4nixOtherStateName",{"$f":"\"'='\" & MID(CELL(\"address\",INDIRECT(B198)),$I$3+1,100)","v":"'='Section C. Local CSBG Resources'!$F$108"},"","Text",null,null,"M2C4nixOtherStateName"]
["C.4n.ix","M2C4nixOtherStateDollar",{"$f":"\"'='\" & MID(CELL(\"address\",INDIRECT(B199)),$I$3+1,100)","v":"'='Section C. Local CSBG Resources'!$K$108"},"","Number",null,null,"M2C4nixOtherStateDollar"]
["C.4n.x.oth","M2C4nxOtherStateName",{"$f":"\"'='\" & MID(CELL(\"address\",INDIRECT(B200)),$I$3+1,100)","v":"'='Section C. Local CSBG Resources'!$F$109"},"","Text",null,null,"M2C4nxOtherStateName"]
["C.4n.x","M2C4nxOtherStateDollar",{"$f":"\"'='\" & MID(CELL(\"address\",INDIRECT(B201)),$I$3+1,100)","v":"'='Section C. Local CSBG Resources'!$K$109"},"","Number",null,null,"M2C4nxOtherStateDollar"]
["C.4o","M2C4oOtherStateTotal",{"$f":"\"'='\" & MID(CELL(\"address\",INDIRECT(B202)),$I$3+1,100)","v":"'='Section C. Local CSBG Resources'!$K$110"},{"$f":" IF(ISBLANK(M2C4oOtherStateTotal),\"\",M2C4oOtherStateTotal)","v":22750},"Number","M2C4oOtherStateTotal"]
["C.4p","M2C4pTotalState",{"$f":"\"'='\" & MID(CELL(\"address\",INDIRECT(B203)),$I$3+1,100)","v":"'='Section C. Local CSBG Resources'!$K$112"},{"$f":" IF(ISBLANK(M2C4pTotalState),\"\",M2C4pTotalState)","v":312418},"Number","M2C4pTotalState"]
["C.4q","M2C4qStateFedEst",{"$f":"\"'='\" & MID(CELL(\"address\",INDIRECT(B204)),$I$3+1,100)","v":"'='Section C. Local CSBG Resources'!$K$113"},{"$f":" IF(ISBLANK(M2C4qStateFedEst),\"\",M2C4qStateFedEst)","v":""},"Number","M2C4qStateFedEst"]
["C.5a","M2C5aLocalUnrestricted",{"$f":"\"'='\" & MID(CELL(\"address\",INDIRECT(B205)),$I$3+1,100)","v":"'='Section C. Local CSBG Resources'!$K$118"},{"$f":" IF(ISBLANK(M2C5aLocalUnrestricted),\"\",M2C5aLocalUnrestricted)","v":100000},"Number","M2C5aLocalUnrestricted"]
["C.5b","M2C5bLocalRestricted",{"$f":"\"'='\" & MID(CELL(\"address\",INDIRECT(B206)),$I$3+1,100)","v":"'='Section C. Local CSBG Resources'!$K$119"},{"$f":" IF(ISBLANK(M2C5bLocalRestricted),\"\",M2C5bLocalRestricted)","v":""},"Number","M2C5bLocalRestricted"]
["C.5c","M2C5cLocalContractServ",{"$f":"\"'='\" & MID(CELL(\"address\",INDIRECT(B207)),$I$3+1,100)","v":"'='Section C. Local CSBG Resources'!$K$120"},{"$f":" IF(ISBLANK(M2C5cLocalContractServ),\"\",M2C5cLocalContractServ)","v":""},"Number","M2C5cLocalContractServ"]
["C.5d","M2C5dLocalInKind",{"$f":"\"'='\" & MID(CELL(\"address\",INDIRECT(B208)),$I$3+1,100)","v":"'='Section C. Local CSBG Resources'!$K$121"},{"$f":" IF(ISBLANK(M2C5dLocalInKind),\"\",M2C5dLocalInKind)","v":""},"Number","M2C5dLocalInKind"]
["C.5e","M2C5eTotalLocal",{"$f":"\"'='\" & MID(CELL(\"address\",INDIRECT(B209)),$I$3+1,100)","v":"'='Section C. Local CSBG Resources'!$K$123"},{"$f":" IF(ISBLANK(M2C5eTotalLocal),\"\",M2C5eTotalLocal)","v":100000},"Number","M2C5eTotalLocal"]
["C.5f","M2C5fLocalFedEst",{"$f":"\"'='\" & MID(CELL(\"address\",INDIRECT(B210)),$I$3+1,100)","v":"'='Section C. Local CSBG Resources'!$K$125"},{"$f":" IF(ISBLANK(M2C5fLocalFedEst),\"\",M2C5fLocalFedEst)","v":""},"Number","M2C5fLocalFedEst"]
["C.6a","M2C6aPrivateFoundations",{"$f":"\"'='\" & MID(CELL(\"address\",INDIRECT(B211)),$I$3+1,100)","v":"'='Section C. Local CSBG Resources'!$K$130"},{"$f":" IF(ISBLANK(M2C6aPrivateFoundations),\"\",M2C6aPrivateFoundations)","v":24219},"Number","M2C6aPrivateFoundations"]
["C.6b","M2C6bPrivateOtherDonated",{"$f":"\"'='\" & MID(CELL(\"address\",INDIRECT(B212)),$I$3+1,100)","v":"'='Section C. Local CSBG Resources'!$K$131"},{"$f":" IF(ISBLANK(M2C6bPrivateOtherDonated),\"\",M2C6bPrivateOtherDonated)","v":29522},"Number","M2C6bPrivateOtherDonated"]
["C.6c","M2C6cPrivateValueOther",{"$f":"\"'='\" & MID(CELL(\"address\",INDIRECT(B213)),$I$3+1,100)","v":"'='Section C. Local CSBG Resources'!$K$132"},{"$f":" IF(ISBLANK(M2C6cPrivateValueOther),\"\",M2C6cPrivateValueOther)","v":1482327},"Number","M2C6cPrivateValueOther"]
["C.6d","M2C6dPrivateInKind",{"$f":"\"'='\" & MID(CELL(\"address\",INDIRECT(B214)),$I$3+1,100)","v":"'='Section C. Local CSBG Resources'!$K$133"},{"$f":" IF(ISBLANK(M2C6dPrivateInKind),\"\",M2C6dPrivateInKind)","v":5899},"Number","M2C6dPrivateInKind"]
["C.6e","M2C6ePrivateClientPayments",{"$f":"\"'='\" & MID(CELL(\"address\",INDIRECT(B215)),$I$3+1,100)","v":"'='Section C. Local CSBG Resources'!$K$134"},{"$f":" IF(ISBLANK(M2C6ePrivateClientPayments),\"\",M2C6ePrivateClientPayments)","v":""},"Number","M2C6ePrivateClientPayments"]
["C.6f","M2C6fPrivateEntityGoods",{"$f":"\"'='\" & MID(CELL(\"address\",INDIRECT(B216)),$I$3+1,100)","v":"'='Section C. Local CSBG Resources'!$K$135"},{"$f":" IF(ISBLANK(M2C6fPrivateEntityGoods),\"\",M2C6fPrivateEntityGoods)","v":""},"Number","M2C6fPrivateEntityGoods"]
["C.6g","M2C6gTotalPrivate",{"$f":"\"'='\" & MID(CELL(\"address\",INDIRECT(B217)),$I$3+1,100)","v":"'='Section C. Local CSBG Resources'!$K$138"},{"$f":" IF(ISBLANK(M2C6gTotalPrivate),\"\",M2C6gTotalPrivate)","v":1541967},"Number","M2C6gTotalPrivate"]
["C.6h","M2C6hPrivateFedEst",{"$f":"\"'='\" & MID(CELL(\"address\",INDIRECT(B218)),$I$3+1,100)","v":"'='Section C. Local CSBG Resources'!$K$140"},{"$f":" IF(ISBLANK(M2C6hPrivateFedEst),\"\",M2C6hPrivateFedEst)","v":""},"Number","M2C6hPrivateFedEst"]
["C 7","M2C7TotalNonCSBG",{"$f":"\"'='\" & MID(CELL(\"address\",INDIRECT(B219)),$I$3+1,100)","v":"'='Section C. Local CSBG Resources'!$K$144"},{"$f":" IF(ISBLANK(M2C7TotalNonCSBG),\"\",M2C7TotalNonCSBG)","v":5176928},"Number","M2C7TotalNonCSBG"]
["C 8","M2C8TotalWithCSBG",{"$f":"\"'='\" & MID(CELL(\"address\",INDIRECT(B220)),$I$3+1,100)","v":"'='Section C. Local CSBG Resources'!$K$145"},{"$f":" IF(ISBLANK(M2C8TotalWithCSBG),\"\",M2C8TotalWithCSBG)","v":5393782},"Number","M2C8TotalWithCSBG"]
["C_Comments","M2CComments",{"$f":"\"'='\" & MID(CELL(\"address\",INDIRECT(B221)),$I$3+1,100)","v":"'='Section C. Local CSBG Resources'!$C$150"},{"$f":" IF(ISBLANK(M2CComments),\"\",M2CComments)","v":""},"Memo","M2CComments",5000]

{"sheet":"Lookups","index":7,"n_rows":26,"n_cols":5,"rows_kept":26,"cut":false,"hidden":true,"merged":[]}
[]
[]
[null,"EditText_WsName","Housing NPIs"]
[null,"EditText_FieldName","FNPI 4z.1"]
[null,"EditText_Text","fff"]
[null,"EditText_Status","Cancel"]
[null,"EditText_MaxLength",4000]
[]
[null,"Max_Errors",500]
[]
[null,"XML_Filename","D:\\Work\\NASCSP - SmartForms\\SmartForms 2019-20\\Module 4 SmartForm - Employment Tab - 2019-20.xml"]
[]
[]
[]
[null,"A1_Period",{"$f":"COUNTIF(C16:C18,TRUE)","v":1}]
[null,"Period_1",false]
[null,"Period_2",true]
[null,"Period_3",false]
[]
[null,"A41_Activities",{"$f":"COUNTIF(Lookups!C22:C26,TRUE)","v":5}]
[null,null,null,null,"Prior Year"]
[null,null,true,"community",true]
[null,null,true,"data mgmt",true]
[null,"A41_Other",true,"other",false]
[null,null,true,"planning",true]
[null,null,true,"training",true]